{"text_format":"3","workbook":"xlsx","n_sheets":10,"sheets":["Index","General Info","Financial Results","Taxonomy","Asset Liabilities","TextBlock","Segment","OCI","Cash Flow Direct","Cash Flow Indirect"],"not_rendered":{"images":1,"macros":1,"defined_names":6},"read":"whole","date_system":"1900"}

{"sheet":"Index","index":0,"n_rows":57,"n_cols":10,"rows_kept":57,"merged":[[5,4,5,8],[6,5,6,8],[7,5,7,8],[8,5,8,8],[9,5,9,8],[10,5,10,8],[11,5,11,8],[14,3,14,9],[15,3,15,9],[16,3,16,9],[19,3,19,9],[20,3,20,9],[21,3,21,9],[22,3,22,9],[23,3,23,9],[24,3,24,9],[27,3,27,9],[28,4,28,8],[29,4,29,8],[30,4,30,8],[31,4,31,8],[32,4,32,8],[35,3,35,9],[36,3,36,9],[39,3,39,9],[40,3,40,9],[41,3,41,9],[42,3,42,9],[43,3,43,9],[44,3,44,9],[45,3,45,9],[46,3,46,9],[49,3,49,9],[50,3,50,9],[51,3,51,9],[52,3,52,9],[53,3,53,9],[54,3,54,9],[55,3,55,9],[56,3,56,9]]}
[]
[]
[]
[]
[]
[{"$nulls":4},"                                      XBRL Excel Utility"]
[{"$nulls":4},"1.","Overview"]
[{"$nulls":4},"2.","Before you begin"]
[{"$nulls":4},"3.","Index"]
[{"$nulls":4},"4.","Import XBRL file"]
[{"$nulls":4},"5.","Steps for filing - Financial Results - Ind AS Format"]
[{"$nulls":4},"6.","Fill up the data in excel utility"]
[]
[]
[{"$nulls":3},"1. Overview"]
[{"$nulls":3},"The excel utility can be used for creating the XBRL/XML file for efiling of Financial Results"]
[{"$nulls":3},"XBRL filling consists of two processes. Firstly generation of XBRL/XML file and upload of generated XBRL/XML file to BSE Listing Center Website (www.listing.bseindia.com) ."]
[]
[]
[{"$nulls":3}," 2.  Before you begin"]
[{"$nulls":3},"1. The version of Microsoft Excel in your system should be Microsoft Office Excel 2007 and above."]
[{"$nulls":3},"2. The system should have a file compression software to unzip excel utility file."]
[{"$nulls":3},"3. Make sure that you have downloaded the latest Excel Utility from BSE Website to your local system."]
[{"$nulls":3},"4. Make sure that you have downloaded the Chrome Browser to view report generated from Excel utility"]
[{"$nulls":3},"5. Please enable the Macros (if disabled) as per instructions given in manual, so that all the functionalities of  Excel Utility works fine. Please first go through Enable Macro - Manual attached with zip file."]
[]
[]
[{"$nulls":3},"3. Index "]
[{"$nulls":3},1,"Details of general information about company",{"$nulls":4},"General Info"]
[{"$nulls":3},2,"Financial Result By Companies Other than Banks",{"$nulls":4},"Quarterly"]
[{"$nulls":3},3,"Statement of Asset and Liabilities",{"$nulls":4},"Asset Liabilities"]
[{"$nulls":3},4,"Format of Reporting of Segment wise Revenue, Result and Capital Employed along with the quartely results",{"$nulls":4},"Segment"]
[{"$nulls":3},5,"OCI (Other Comprehensive Income)",{"$nulls":4},"OCI"]
[]
[]
[{"$nulls":3},"4. Import XBRL file"]
[{"$nulls":3},"1. Now you can import and view previously generated XBRL files by clicking Import XBRL button on Genenral information sheet. "]
[]
[]
[{"$nulls":3},"5. Steps for Filing Of  Financial Results"]
[{"$nulls":3},"I.  Fill up the data: Navigate to each field of every section in the sheet to provide applicable data in correct format.  (Formats will get reflected while filling data.)  \n   - Use paste special command to paste data from other sheet."]
[{"$nulls":3},"II. Validating Sheets:  Click on the ''Validate \"  button to ensure that the sheet has been properly filled and also data has been furnished in proper format. If there are some errors on the sheet, excel utility will prompt you about the same."]
[{"$nulls":3},"III. Validate All Sheets:  Click on the ''Home\"  button. And then click on \"Validate All Sheet\" button to ensure that all sheets has been properly filled and validated successfully. If there are some errors on the sheet, excel utility will prompt you about the same and stop validation at the same time. After correction, once again follow the same procedure to validate all sheets."]
[{"$nulls":3},"Excel Utility will not allow you to generate XBRL/XML until you rectify all errors. "]
[{"$nulls":3},"IV. Generate XML :   Excel Utility will not allow you to generate XBRL/XML unless successful validation of all sheet is completed. Now click on 'Generate XML'' to generate XBRL/XML file. \n    - Save the XBRL/XML file in your desired folder in local system. "]
[{"$nulls":3},"V. Generate Report :   Excel Utility will allow you to generate Report. Now click on 'Generate Report'' to generate html report.   \n     - Save the HTML Report file in your desired folder in local system.     \n     - To view HTML Report open \"Chrome Web Browser\" . \n     - To print report in PDF Format, Click on print button and save as PDF. "]
[{"$nulls":3},"VI. Upload XML file to BSE Listing Center: For uploading the XBRL/XML file generated through  Utility, login to BSE Listing Center and upload generated xml file. On Upload screen provide the required information and browse to select XML file and submit the XML.\n"]
[]
[]
[{"$nulls":3},"6. Fill up the data in excel utility"]
[{"$nulls":3},"1. Cells with red fonts indicate mandatory fields. "]
[{"$nulls":3},"2. If mandatory field is left empty, then Utility will not allow you to proceed further for generating XML."]
[{"$nulls":3},"3. You are not allowed to enter data in the Grey Cells."]
[{"$nulls":3},"4. If fields are not applicable to your company then leave it blank. Do not insert Zero unless it is a mandatory field."]
[{"$nulls":3},"5. Data provided must be in correct format, otherwise Utility will not allow you to proceed further for generating XML."]
[{"$nulls":3},"6. Select data from \"Dropdown list\" wherever applicable. "]
[{"$nulls":3},"7. Adding Notes:  Click on \"Add Notes\" button to add notes "]

{"sheet":"General Info","index":1,"n_rows":74,"n_cols":27,"rows_kept":74,"merged":[[4,3,4,7],[5,5,11,7],[12,7,15,7],[17,5,17,7],[20,5,20,7],[21,5,22,7],[27,5,28,7]]}
[{"$nulls":17},"SME","Non SME",{"$nulls":5},"First quarter","First quarter","Declaration of unmodified opinion"]
[{"$nulls":17},"Actual",null,"Audited",{"$nulls":4},"Half yearly","Half yearly","Statement on impact of audit qualification"]
[{"$nulls":16},"Consolidated","Thousands",null,"Unaudited",{"$nulls":4},"Third quarter","Third quarter","Not applicable"]
[{"$nulls":4},"                *Validate General Information to open other sheets",{"$nulls":11},"Standalone","Lakhs","Single segment",{"$nulls":5},"Fourth quarter","Fourth quarter"]
[{"$nulls":3},"General information about company",{"$nulls":13},"Millions","Multi segment","First quarter","Half yearly",{"$nulls":3},"Yearly","Fifth quarter"]
[{"$nulls":3},"Scrip code",531688,{"$nulls":12},"Billions","Geographical","Half yearly","Yearly",{"$nulls":4},"Yearly"]
[{"$nulls":3},"NSE Symbol",{"$nulls":13},"Crores",null,"Third quarter"]
[{"$nulls":3},"MSEI Symbol",{"$nulls":15},"Yearly","Yes","Cash Flow Direct"]
[{"$nulls":3},"ISIN*","INE621B01021",{"$nulls":15},"No","Cash Flow Indirect"]
[{"$nulls":3},"Name of company","Prithvi Exchange (India) Ltd",{"$nulls":9},"Equity"]
[{"$nulls":3},"Type of company",{"$nulls":10},"Debt securities and/or non-cumulative redeemable preference shares",null,"00"]
[{"$nulls":3},"Class of security","Equity",{"$nulls":9},"Equity and Debt",null,"01","01","2014",{"$nulls":6},12]
[{"$nulls":3},"Date of start of financial year","01","04",2020,{"$nulls":9},"02","02","2015"]
[{"$nulls":3},"Date of end of financial year","31","03",2021,{"$nulls":9},"03","03","2016"]
[{"$nulls":3},"Date of board meeting when results were approved","04","11",2020,{"$nulls":9},"04","04",2017]
[{"$nulls":3},"Date on which prior intimation of the meeting for considering financial results was informed to the exchange","27","10",2020,{"$nulls":9},"05","05",2018]
[{"$nulls":3},"Description of presentation currency","INR",{"$nulls":11},"06","06",2019]
[{"$nulls":3},"Level of rounding used in financial results","Lakhs","Reporting only in \"Lakhs\", \"Millions\", \"Billions\", \"Crores\" Allowed",{"$nulls":10},"07","07",2020,{"$nulls":6},{"$f":"IF($E$12=$O$11,Dbt,IF($Z$12=15,Diff15,IF($Z$12=18,Diff18,IF($Z$12<=12,Diff12,Eqt))))","v":{"$error":"#VALUE!"}}]
[{"$nulls":3},"Reporting Quarter","Half yearly",{"$nulls":11},"08","08",2021]
[{"$nulls":3},"Nature of report standalone or consolidated","Standalone",{"$nulls":11},"09","09",2022]
[{"$nulls":3},"Whether results are audited or unaudited","Unaudited","For Current Quarter Only",{"$nulls":10},"10","10",2023]
[{"$nulls":3},"Segment Reporting","Single segment",{"$nulls":11},"11","11",2024]
[{"$nulls":3},"Description of single segment","FOREIGN EXCHANGE",{"$nulls":11},"12","12",2025]
[{"$nulls":3},"Start date and time of board meeting","04-11-2020","03","00","HH:MM",{"$nulls":8},"13",null,2026,{"$nulls":6},"Start date of board meeting"]
[{"$nulls":3},"End date and time of board meeting","04-11-2020","07","00","HH:MM",{"$nulls":8},"14",null,2027,{"$nulls":6},"End date of board meeting"]
[{"$nulls":3},"Whether cash flow statement is applicable on company","Yes",{"$nulls":11},"15"]
[{"$nulls":3},"Type of cash flow statement","Cash Flow Indirect",{"$nulls":11},"16"]
[{"$nulls":3},"Declaration of unmodified opinion or statement on impact of audit qualification","Not applicable",{"$nulls":11},"17"]
[{"$nulls":3},"Unique Document Identification Number(UDIN)",{"$nulls":12},"18"]
[{"$nulls":16},"19"]
[{"$nulls":16},"20"]
[{"$nulls":16},"21"]
[{"$nulls":16},"22"]
[{"$nulls":16},"23"]
[{"$nulls":16},"24"]
[{"$nulls":16},"25"]
[{"$nulls":16},"26"]
[{"$nulls":16},"27"]
[{"$nulls":16},"28"]
[{"$nulls":16},"29"]
[{"$nulls":16},"30"]
[{"$nulls":16},"31"]
[{"$nulls":16},"32"]
[{"$nulls":16},"33"]
[{"$nulls":16},"34"]
[{"$nulls":16},"35"]
[{"$nulls":16},"36"]
[{"$nulls":16},"37"]
[{"$nulls":16},"38"]
[{"$nulls":16},"39"]
[{"$nulls":16},"40"]
[{"$nulls":16},"41"]
[{"$nulls":16},"42"]
[{"$nulls":16},"43"]
[{"$nulls":16},"44"]
[{"$nulls":16},"45"]
[{"$nulls":16},"46"]
[{"$nulls":16},"47"]
[{"$nulls":16},"48"]
[{"$nulls":16},"49"]
[{"$nulls":16},"50"]
[{"$nulls":16},"51"]
[{"$nulls":16},"52"]
[{"$nulls":16},"53"]
[{"$nulls":16},"54"]
[{"$nulls":16},"55"]
[{"$nulls":16},"56"]
[{"$nulls":16},"57"]
[{"$nulls":16},"58"]
[{"$nulls":16},"59"]
[{"$nulls":16},"60"]
[{"$nulls":16},"61"]
[{"$nulls":16},"62"]
[{"$nulls":16},"63"]

{"sheet":"Financial Results","index":2,"n_rows":79,"n_cols":19,"rows_kept":79,"merged":[[7,3,7,6],[8,3,8,4],[13,4,13,6],[14,5,14,6],[18,5,18,6],[25,5,25,6],[41,5,41,6],[54,5,54,6],[57,5,57,6],[60,5,60,6],[63,5,63,6],[65,5,65,6],[66,5,66,6],[69,5,69,6],[72,5,72,6]]}
{"$rows_empty":7}
[{"$nulls":3},"Financial Results – Ind-AS"]
[{"$nulls":3},"Particulars",null,"3 months/ 6 months ended         (dd-mm-yyyy)","Year to date figures for current period ended                              (dd-mm-yyyy)"]
[{"$nulls":3},"A","Date of start of reporting period","01-07-2020","01-04-2020"]
[{"$nulls":3},"B","Date of end of reporting period","30-09-2020","30-09-2020"]
[{"$nulls":3},"C","Whether results are audited or unaudited",{"$f":"+IF(COUNTA('General Info'!E21),'General Info'!E21,\"\")","v":"Unaudited"},{"$f":"+IF(COUNTA('General Info'!E21),'General Info'!E21,\"\")","v":"Unaudited"},{"$nulls":7},"Audited"]
[{"$nulls":3},"D","Nature of report standalone or consolidated",{"$f":"+IF(COUNTA('General Info'!E20),'General Info'!E20,\"\")","v":"Standalone"},{"$f":"+IF(COUNTA('General Info'!E20),'General Info'!E20,\"\")","v":"Standalone"},{"$nulls":7},"Unaudited"]
[{"$nulls":3},"Part I","Blue color marked fields are non-mandatory.                                                                                                                                                                                For Consolidated Results, if the company has no figures for 3 months / 6 months ended, in such case zero shall be inserted in the said column."]
[{"$nulls":3},1,"Income"]
[{"$nulls":4},"Revenue from operations",{"v":92.3,"d":"92.300"},{"v":132.49,"d":"132.490"},{"$nulls":11},{"$f":"+IF(COUNT(F16),+F16,\"\")","v":92.3}]
[{"$nulls":4},"Other income",{"v":33.85,"d":"33.850"},{"v":55.54,"d":"55.540"},{"$nulls":11},{"$f":"+IF(COUNT(F17),+F17,\"\")","v":33.85}]
[{"$nulls":4},"Total income",{"$f":"+IF(COUNT(F16:F17),ROUND(SUM(F16:F17),3),\"\")","v":{"v":126.15,"d":"126.150"}},{"$f":"+IF(COUNT(G16:G17),ROUND(SUM(G16:G17),3),\"\")","v":{"v":188.03,"d":"188.030"}},{"$nulls":11},126.15]
[{"$nulls":3},2,"Expenses",{"$nulls":13},""]
[{"$nulls":3},"(a)","Cost of materials consumed",{"v":0,"d":"0.000"},{"v":0,"d":"0.000"},{"$nulls":11},0]
[{"$nulls":3},"(b)","Purchases of stock-in-trade",{"v":0,"d":"0.000"},{"v":0,"d":"0.000"},{"$nulls":11},0]
[{"$nulls":3},"(c)","Changes in inventories of finished goods, work-in-progress and stock-in-trade",{"v":0,"d":"0.000"},{"v":0,"d":"0.000"},{"$nulls":11},0]
[{"$nulls":3},"(d)","Employee benefit expense  ",{"v":100.47,"d":"100.470"},{"v":209.42,"d":"209.420"},{"$nulls":11},100.47]
[{"$nulls":3},"(e)","Finance costs",{"v":4.12,"d":"4.120"},{"v":6.71,"d":"6.710"},{"$nulls":11},4.12]
[{"$nulls":3},"(f)","Depreciation, depletion and amortisation expense",{"v":5.52,"d":"5.520"},{"v":10.6,"d":"10.600"},{"$nulls":11},5.52]
[{"$nulls":3},"(f)","Other Expenses",{"$nulls":13},""]
[{"$nulls":3},1,"PHONE CHARGES",{"v":1.9,"d":"1.900"},{"v":2.68,"d":"2.680"},{"$nulls":11},1.9]
[{"$nulls":3},2,"VEHICLE MAINTANCE",{"v":1.54,"d":"1.540"},{"v":2.02,"d":"2.020"},{"$nulls":11},1.54]
[{"$nulls":3},3,"Rent",{"v":39.43,"d":"39.430"},{"v":52.27,"d":"52.270"},{"$nulls":11},39.43]
[{"$nulls":3},4,"TRAVELLING EXPENSES",{"v":3.07,"d":"3.070"},{"v":4.52,"d":"4.520"},{"$nulls":11},3.07]
[{"$nulls":3},5,"PRINTING & STATIONARY",{"v":2.09,"d":"2.090"},{"v":2.33,"d":"2.330"},{"$nulls":11},2.09]
[{"$nulls":3},6,"INSURANCE CHARGES",{"v":6.76,"d":"6.760"},{"v":6.94,"d":"6.940"},{"$nulls":11},6.76]
[{"$nulls":3},7,"ELECTRICITY EXPENSES",{"v":3.98,"d":"3.980"},{"v":5.49,"d":"5.490"},{"$nulls":11},3.98]
[{"$nulls":3},8,"BANK CHARGES",{"v":4.22,"d":"4.220"},{"v":5.1,"d":"5.100"},{"$nulls":11},4.22]
[{"$nulls":3},9,"Other Expenses",{"v":21.69,"d":"21.690"},{"v":35.16,"d":"35.160"},{"$nulls":11},21.69]
[{"$nulls":3},10,{"$nulls":14},""]
[{"$nulls":4},"Total other expenses",{"$f":"+IF(COUNT(F27:F36),ROUND(SUM(F27:F36),3),\"\")","v":{"v":84.68,"d":"84.680"}},{"$f":"+IF(COUNT(G27:G36),ROUND(SUM(G27:G36),3),\"\")","v":{"v":116.51,"d":"116.510"}},{"$nulls":11},84.68]
[{"$nulls":4},"Total  expenses",{"$f":"+IF(COUNT(F37,F20:F25),SUM(F37,F20:F25),\"\")","v":{"v":194.79000000000002,"d":"194.790"}},{"v":343.24,"d":"343.240"},{"$nulls":11},194.79000000000002]
[{"$nulls":3},3,"Total profit before exceptional items and tax",{"$f":"+IF(COUNT(F38,F18),+ROUND(SUM(F18)-SUM(F38),3),\"\")","v":{"v":-68.64,"d":"-68.640"}},{"v":-155.21,"d":"-155.210"},{"$nulls":11},-68.64]
[{"$nulls":3},4,"Exceptional items ",{"v":0,"d":"0.000"},{"v":0,"d":"0.000"},{"$nulls":11},0]
[{"$nulls":3},5,"Total profit before tax",{"$f":"+IF(COUNT(F39:F40),+ROUND(SUM(F39)+SUM(F40),3),\"\")","v":{"v":-68.64,"d":"-68.640"}},{"$f":"+IF(COUNT(G39:G40),+ROUND(SUM(G39)+SUM(G40),3),\"\")","v":{"v":-155.21,"d":"-155.210"}},{"$nulls":11},-68.64]
[{"$nulls":3},7,"Tax expense",{"$nulls":13},""]
[{"$nulls":3},8,"Current tax",{"v":0,"d":"0.000"},{"v":0,"d":"0.000"},{"$nulls":11},0]
[{"$nulls":3},9,"Deferred tax",{"v":0,"d":"0.000"},{"v":0,"d":"0.000"},{"$nulls":11},0]
[{"$nulls":3},10,"Total tax expenses",{"$f":"+IF(COUNT(F43:F44),+ROUND(SUM(F43:F44),3),\"\")","v":{"v":0,"d":"0.000"}},{"$f":"+IF(COUNT(G43:G44),+ROUND(SUM(G43:G44),3),\"\")","v":{"v":0,"d":"0.000"}},{"$nulls":11},0]
[{"$nulls":3},11,"Net movement in regulatory deferral account balances related to profit or loss and the related deferred tax movement",{"v":0,"d":"0.000"},{"v":0,"d":"0.000"},{"$nulls":11},0]
[{"$nulls":3},14,"Net Profit Loss for the period from continuing operations",{"$f":"+IF(COUNT(F41,F45,F46),+ROUND(SUM(F41)-SUM(F45)+SUM(F46),3),\"\")","v":{"v":-68.64,"d":"-68.640"}},{"$f":"+IF(COUNT(G41,G45,G46),+ROUND(SUM(G41)-SUM(G45)+SUM(G46),3),\"\")","v":{"v":-155.21,"d":"-155.210"}},{"$nulls":11},-68.64]
[{"$nulls":3},15,"Profit (loss) from discontinued operations before tax",{"v":0,"d":"0.000"},{"v":0,"d":"0.000"},{"$nulls":11},0]
[{"$nulls":3},16,"Tax expense of discontinued operations",{"v":0,"d":"0.000"},{"v":0,"d":"0.000"},{"$nulls":11},0]
[{"$nulls":3},17,"Net profit (loss) from discontinued operation after tax",{"$f":"+IF(COUNT(F48:F49),+ROUND(SUM(F48)-SUM(F49),3),\"\")","v":{"v":0,"d":"0.000"}},{"$f":"+IF(COUNT(G48:G49),+ROUND(SUM(G48)-SUM(G49),3),\"\")","v":{"v":0,"d":"0.000"}},{"$nulls":11},0]
[{"$nulls":3},19,"Share of profit (loss) of associates and joint ventures accounted for using equity method",{"v":0,"d":"0.000"},{"v":0,"d":"0.000"},{"$nulls":11},0]
[{"$nulls":3},21,"Total profit (loss) for period",{"$f":"+IF(COUNT(F47,F50,F51),ROUND(SUM(F47)+SUM(F50:F51),3),\"\")","v":{"v":-68.64,"d":"-68.640"}},{"$f":"+IF(COUNT(G47,G50,G51),ROUND(SUM(G47)+SUM(G50:G51),3),\"\")","v":{"v":-155.21,"d":"-155.210"}},{"$nulls":11},-68.64]
[{"$nulls":3},22,"Other comprehensive income net of taxes",{"v":24.48,"d":"24.480"},{"v":56.59,"d":"56.590"},{"$nulls":11},24.48]
[{"$nulls":3},23,"Total Comprehensive Income for the period",{"$f":"+IF(COUNT(F52:F53),SUM(F52:F53),\"\")","v":{"v":-44.16,"d":"-44.160"}},{"$f":"+IF(COUNT(G52:G53),SUM(G52:G53),\"\")","v":{"v":-98.62,"d":"-98.620"}},{"$nulls":11},-44.16]
[{"$nulls":3},24,"Total profit or loss, attributable to",{"$nulls":13},""]
[{"$nulls":4},"Profit or loss, attributable to owners of parent",{"$nulls":13},""]
[{"$nulls":4},"Total profit or loss, attributable to non-controlling interests",{"$nulls":13},""]
[{"$nulls":3},25,"Total Comprehensive income for the period attributable to",{"$nulls":13},""]
[{"$nulls":4},"Comprehensive income for the period attributable to owners of parent",{"v":0,"d":"0.000"},{"v":0,"d":"0.000"},{"$nulls":11},0]
[{"$nulls":4},"Total comprehensive income for the period attributable to owners of parent non-controlling interests",{"v":0,"d":"0.000"},{"v":0,"d":"0.000"},{"$nulls":11},0]
[{"$nulls":3},26,"Details of equity share capital",{"$nulls":13},""]
[{"$nulls":4},"Paid-up equity share capital",{"v":824.97,"d":"824.970"},{"v":824.97,"d":"824.970"},{"$nulls":11},824.97]
[{"$nulls":4},"Face value of equity share capital",{"v":10,"d":"10.000"},{"v":10,"d":"10.000"},{"$nulls":11},10]
[{"$nulls":3},27,"Details of debt securities",{"$nulls":13},""]
[{"$nulls":3},28,"Reserves excluding revaluation reserve",{"$nulls":13},""]
[{"$nulls":3},29,"Earnings per share",{"$nulls":13},""]
[{"$nulls":3},"i","Earnings per equity share for continuing operations",{"$nulls":13},""]
[{"$nulls":4},"Basic earnings (loss) per share from continuing operations",{"v":-0.83,"d":"-0.830"},{"v":-1.88,"d":"-1.880"},{"$nulls":11},-0.83]
[{"$nulls":4},"Diluted earnings (loss) per share from continuing operations",{"v":-0.83,"d":"-0.830"},{"v":-1.88,"d":"-1.880"},{"$nulls":11},-0.83]
[{"$nulls":3},"ii","Earnings per equity share for discontinued operations",{"$nulls":13},""]
[{"$nulls":4},"Basic earnings (loss) per share from discontinued operations",{"v":0,"d":"0.000"},{"v":0,"d":"0.000"},{"$nulls":11},0]
[{"$nulls":4},"Diluted earnings (loss) per share from discontinued operations",{"v":0,"d":"0.000"},{"v":0,"d":"0.000"},{"$nulls":11},0]
[{"$nulls":3},"ii","Earnings per equity share",{"$nulls":13},""]
[{"$nulls":4},"Basic earnings (loss) per share from continuing and discontinued operations",{"$f":"+IF(COUNT(F68,F71),SUM(F68,F71),\"\")","v":{"v":-0.83,"d":"-0.830"}},{"$f":"+IF(COUNT(G68,G71),SUM(G68,G71),\"\")","v":{"v":-1.88,"d":"-1.880"}},{"$nulls":11},-0.83]
[{"$nulls":4},"Diluted earnings (loss) per share from continuing and discontinued operations",{"$f":"+IF(COUNT(F69,F72),SUM(F69,F72),\"\")","v":{"v":-0.83,"d":"-0.830"}},{"$f":"+IF(COUNT(G69,G72),SUM(G69,G72),\"\")","v":{"v":-1.88,"d":"-1.880"}},{"$nulls":11},-0.83]
[{"$nulls":3},30,"Debt equity ratio",{"v":0,"d":"0.000"},{"v":0,"d":"0.000"},{"$nulls":11},0]
[{"$nulls":3},31,"Debt service coverage ratio",{"v":0,"d":"0.000"},{"v":0,"d":"0.000"},{"$nulls":11},0]
[{"$nulls":3},32,"Interest service coverage ratio",{"v":0,"d":"0.000"},{"v":0,"d":"0.000"},{"$nulls":11},{"$f":"+IF(COUNT(F78),+F78,\"\")","v":0}]
[{"$nulls":3},33,"Disclosure of notes on financial results"]

{"sheet":"Taxonomy","index":3,"n_rows":285,"n_cols":5,"rows_kept":285,"hidden":true}
["element","label","type","periodType","validation"]
["General Information"]
["ScripCode","Scrip code","in-bse-fin-types:ScripCode","duration","This is a mandatory field. Should be valid SCRIP CODE  as per BSE Scrip Code Format. "]
["Symbol","NSE Symbol","xbrli:stringItemType","duration"]
["MSEISymbol","MSEI Symbol","xbrli:stringItemType","duration"]
["ISIN","ISIN*","in-bse-fin-types:ISIN","duration"]
["NameOfTheCompany","Name of company","xbrli:stringItemType","duration"]
["TypeOfCompany","Type of company","in-bse-fin-types:TypeOfCompany","duration"]
["ClassOfSecurity","Class of security","in-bse-fin-types:ClassOfSecurity","duration"]
["DateOfStartOfFinancialYear","Date of start of financial year","xbrli:dateItemType","duration"]
["DateOfEndOfFinancialYear","Date of end of financial year","xbrli:dateItemType","duration"]
["DateOfStartOfReportingPeriod","Date of start of reporting period","xbrli:dateItemType","duration"]
["DateOfEndOfReportingPeriod","Date of end of reporting period","xbrli:dateItemType","duration"]
["DateOfBoardMeetingWhenFinancialResultsWereApproved","Date of board meeting when results were approved","xbrli:dateItemType","duration","Date of board meeting when results were approved shall not be before the current financial year."]
["DateOnWhichPriorIntimationOfTheMeetingForConsideringFinancialResultsWasInformedToTheExchange","Date on which prior intimation of the meeting for considering financial results was informed to the exchange","xbrli:dateItemType","duration","\"Date on which prior intimation of the meeting for considering financial results was informed to the exchange\" shall not be later than \"Date of board meeting when results were approved\" and shall not be before the current financial year."]
["NatureOfReportStandaloneConsolidated","Nature of report standalone or consolidated","xbrli:stringItemType","duration"]
["ReportingQuarter","Reporting Quarter","xbrli:stringItemType","duration"]
["DescriptionOfPresentationCurrency","Description of presentation currency","xbrli:stringItemType","duration"]
["LevelOfRoundingUsedInFinancialStatements","Level of rounding used in financial results","in-bse-fin-types:LevelOfRounding","duration"]
["WhetherResultsAreAuditedOrUnaudited","Whether results are audited or unaudited","xbrli:stringItemType","duration"]
["IsCompanyReportingMultisegmentOrSingleSegment","Segment Reporting","xbrli:stringItemType","duration"]
["DescriptionOfSingleSegment","Description of single segment","xbrli:stringItemType","duration","This is a mandatory field as \"Single Segment\" selected in Segement Reporting field."]
["DateOfStartOfBoardMeeting","Start date of board meeting","xbrli:dateItemType","duration","Start date of board meeting would be the next quarter then the reporting quarter (e.g. if results are submitted for June, quarter start time and end time would be from July) and shall not be earlier than Date of Prior Intimation."]
["DateOfEndOfBoardMeeting","End date of board meeting","xbrli:dateItemType","duration","End date of board meeting must be after or same day of start date of bord meeting and  would be the next quarter then the reporting quarter (e.g. if results are submitted for June, quarter start time and end time would be from July)."]
["StartTimeOfBoardMeeting",{"$f":"'General Info'!D24","v":"Start date and time of board meeting"},"xbrli:timeItemType","duration"]
["EndTimeOfBoardMeeting",{"$f":"'General Info'!D25","v":"End date and time of board meeting"},"xbrli:timeItemType","duration","\"End time of board meeting\" must be greater than \"Start time of board meeting\""]
["DeclarationOfUnmodifiedOpinionOrStatementOnImpactOfAuditQualification","Declaration of unmodified opinion or statement on impact of audit qualification","in-bse-fin-types:Declaration","duration","\"Not applicable\" is not allowed for \"Yearly\" reporting quarter."]
["Financial Results"]
["RevenueFromOperations","Revenue from operations","xbrli:monetaryItemType","duration"]
["OtherIncome","Other income","xbrli:monetaryItemType","duration"]
["Income","Total income","xbrli:monetaryItemType","duration"]
["CostOfMaterialsConsumed","Cost of materials consumed","xbrli:monetaryItemType","duration"]
["PurchasesOfStockInTrade","Purchases of stock-in-trade","xbrli:monetaryItemType","duration"]
["ChangesInInventoriesOfFinishedGoodsWorkInProgressAndStockInTrade","Changes in inventories of finished goods, work-in-progress and stock-in-trade","xbrli:monetaryItemType","duration"]
["EmployeeBenefitExpense","Employee benefit expense  ","xbrli:monetaryItemType","duration"]
["FinanceCosts","Finance costs","xbrli:monetaryItemType","duration"]
["DepreciationDepletionAndAmortisationExpense","Depreciation, depletion and amortisation expense","xbrli:monetaryItemType","duration"]
["DescriptionOfOtherExpenses","Description of other expenses","xbrli:stringItemType","duration"]
["OtherExpenses","Other Expenses","xbrli:monetaryItemType","duration"]
["OtherExpenses","Total other expenses","xbrli:monetaryItemType","duration"]
["Expenses","Total  expenses","xbrli:monetaryItemType","duration"]
["ProfitBeforeExceptionalItemsAndTax","Total profit before exceptional items and tax","xbrli:monetaryItemType","duration"]
["ExceptionalItemsBeforeTax","Exceptional items ","xbrli:monetaryItemType","duration"]
["ProfitBeforeTax","Total profit before tax","xbrli:monetaryItemType","duration"]
["CurrentTax","Current tax","xbrli:monetaryItemType","duration"]
["DeferredTax","Deferred tax","xbrli:monetaryItemType","duration"]
["TaxExpense","Total tax expenses","xbrli:monetaryItemType","duration"]
["NetMovementInRegulatoryDeferralAccountBalancesRelatedToProfitOrLossAndTheRelatedDeferredTaxMovement","Net movement in regulatory deferral account balances related to profit or loss and the related deferred tax movement","xbrli:monetaryItemType","duration"]
["ProfitLossForPeriodFromContinuingOperations","Net Profit Loss for the period from continuing operations","xbrli:monetaryItemType","duration"]
["ProfitLossFromDiscontinuedOperationsBeforeTax","Profit (loss) from discontinued operations before tax","xbrli:monetaryItemType","duration"]
["TaxExpenseOfDiscontinuedOperations","Tax expense of discontinued operations","xbrli:monetaryItemType","duration"]
["ProfitLossFromDiscontinuedOperationsAfterTax","Net profit (loss) from discontinued operation after tax","xbrli:monetaryItemType","duration"]
["ShareOfProfitLossOfAssociatesAndJointVenturesAccountedForUsingEquityMethod","Share of profit (loss) of associates and joint ventures accounted for using equity method","xbrli:monetaryItemType","duration"]
["ProfitLossForPeriod","Total profit (loss) for period","xbrli:monetaryItemType","duration"]
["OtherComprehensiveIncomeNetOfTaxes","Other comprehensive income net of taxes","xbrli:monetaryItemType","duration"]
["ComprehensiveIncomeForThePeriod","Total Comprehensive Income for the period","xbrli:monetaryItemType","duration"]
["ProfitOrLossAttributableToOwnersOfParent","Profit or loss, attributable to owners of parent","xbrli:monetaryItemType","duration"]
["ProfitOrLossAttributableToNonControllingInterests","Total profit or loss, attributable to non-controlling interests","xbrli:monetaryItemType","duration"]
["ComprehensiveIncomeForThePeriodAttributableToOwnersOfParent","Comprehensive income for the period attributable to owners of parent","xbrli:monetaryItemType","duration"]
["ComprehensiveIncomeForThePeriodAttributableToOwnersOfParentNonControllingInterests","Total comprehensive income for the period attributable to owners of parent non-controlling interests","xbrli:monetaryItemType","duration"]
["PaidUpValueOfEquityShareCapital","Paid-up equity share capital","xbrli:monetaryItemType","duration"]
["FaceValueOfEquityShareCapital","Face value of equity share capital","num:perShareItemType","duration"]
["PaidUpValueOfDebtCapital","Paid-up debt capital","xbrli:monetaryItemType","duration"]
["FaceValueOfDebtSecurities","Face value of debt securities","num:perShareItemType","duration"]
["ReserveExcludingRevaluationReserves","Reserves excluding revaluation reserve","xbrli:monetaryItemType","duration"]
["DebentureRedemptionReserve","Debenture redemption reserve","xbrli:monetaryItemType","duration"]
["BasicEarningsLossPerShareFromContinuingOperations","Basic earnings (loss) per share from continuing operations","num:perShareItemType","duration"]
["DilutedEarningsLossPerShareFromContinuingOperations","Diluted earnings (loss) per share from continuing operations","num:perShareItemType","duration"]
["BasicEarningsLossPerShareFromDiscontinuedOperations","Basic earnings (loss) per share from discontinued operations","num:perShareItemType","duration"]
["DilutedEarningsLossPerShareFromDiscontinuedOperations","Diluted earnings (loss) per share from discontinued operations","num:perShareItemType","duration"]
["BasicEarningsLossPerShareFromContinuingAndDiscontinuedOperations","Basic earnings (loss) per share from continuing and discontinued operations","num:perShareItemType","duration"]
["DilutedEarningsLossPerShareFromContinuingAndDiscontinuedOperations","Diluted earnings (loss) per share from continuing and discontinued operations","num:perShareItemType","duration"]
["DebtEquityRatio","Debt equity ratio","num:percentItemType","duration"]
["DebtServiceCoverageRatio","Debt service coverage ratio","num:percentItemType","duration"]
["InterestServiceCoverageRatio","Interest service coverage ratio","num:percentItemType","duration"]
["DisclosureOfNotesOnFinancialResultsExplanatoryTextBlock","Disclosure of notes on financial results","nonnum:textBlockItemType","duration"]
["Asset Liabilities"]
["PropertyPlantAndEquipment","Property, plant and equipment","xbrli:monetaryItemType","instant"]
["CapitalWorkInProgress","Capital work-in-progress","xbrli:monetaryItemType","instant"]
["InvestmentProperty","Investment property","xbrli:monetaryItemType","instant"]
["Goodwill","Goodwill","xbrli:monetaryItemType","instant"]
["OtherIntangibleAssets","Other intangible assets","xbrli:monetaryItemType","instant"]
["IntangibleAssetsUnderDevelopment","Intangible assets under development","xbrli:monetaryItemType","instant"]
["BiologicalAssetsOtherThanBearerPlants","Biological assets other than bearer plants","xbrli:monetaryItemType","instant"]
["InvestmentsAccountedForUsingEquityMethod","Investments accounted for using equity method","xbrli:monetaryItemType","instant"]
["NoncurrentInvestments","Non-current investments","xbrli:monetaryItemType","instant"]
["TradeReceivablesNoncurrent","Trade receivables, non-current","xbrli:monetaryItemType","instant"]
["LoansNoncurrent","Loans, non-current","xbrli:monetaryItemType","instant"]
["OtherNoncurrentFinancialAssets","Other non-current financial assets","xbrli:monetaryItemType","instant"]
["NoncurrentFinancialAssets","Total non-current financial assets","xbrli:monetaryItemType","instant"]
["DeferredTaxAssetsNet","Deferred tax assets (net)","xbrli:monetaryItemType","instant"]
["OtherNoncurrentAssets","Other non-current assets","xbrli:monetaryItemType","instant"]
["NoncurrentAssets","Total non-current assets","xbrli:monetaryItemType","instant"]
["Inventories","Inventories","xbrli:monetaryItemType","instant"]
["CurrentInvestments","Current investments","xbrli:monetaryItemType","instant"]
["TradeReceivablesCurrent","Trade receivables, current","xbrli:monetaryItemType","instant"]
["CashAndCashEquivalents","Cash and cash equivalents","xbrli:monetaryItemType","instant"]
["BankBalanceOtherThanCashAndCashEquivalents","Bank balance other than cash and cash equivalents","xbrli:monetaryItemType","instant"]
["LoansCurrent","Loans, current","xbrli:monetaryItemType","instant"]
["OtherCurrentFinancialAssets","Other current financial assets","xbrli:monetaryItemType","instant"]
["CurrentFinancialAssets","Total current financial assets","xbrli:monetaryItemType","instant"]
["CurrentTaxAssets","Current tax assets (net)","xbrli:monetaryItemType","instant"]
["OtherCurrentAssets","Other current assets","xbrli:monetaryItemType","instant"]
["CurrentAssets","Total current assets","xbrli:monetaryItemType","instant"]
["NoncurrentAssetsClassifiedAsHeldForSale","Non-current assets classified as held for sale","xbrli:monetaryItemType","instant"]
["RegulatoryDeferralAccountDebitBalancesAndRelatedDeferredTaxAssets","Regulatory deferral account debit balances and related deferred tax Assets","xbrli:monetaryItemType","instant"]
["Assets","Total assets","xbrli:monetaryItemType","instant"]
["EquityShareCapital","Equity share capital","xbrli:monetaryItemType","instant"]
["OtherEquity","Other equity","xbrli:monetaryItemType","instant"]
["EquityAttributableToOwnersOfParent","Total equity attributable to owners of parent","xbrli:monetaryItemType","instant"]
["NonControllingInterest","Non controlling interest","xbrli:monetaryItemType","instant"]
["Equity","Total equity","xbrli:monetaryItemType","instant"]
["BorrowingsNoncurrent","Borrowings, non-current","xbrli:monetaryItemType","instant"]
["TradePayablesNoncurrent","Trade payables, non-current","xbrli:monetaryItemType","instant"]
["OtherNoncurrentFinancialLiabilities","Other non-current financial liabilities","xbrli:monetaryItemType","instant"]
["NoncurrentFinancialLiabilities","Total non-current financial liabilities","xbrli:monetaryItemType","instant"]
["ProvisionsNoncurrent","Provisions, non-current","xbrli:monetaryItemType","instant"]
["DeferredTaxLiabilitiesNet","Deferred tax liabilities (net)","xbrli:monetaryItemType","instant"]
["DeferredGovernmentGrantsNoncurrent","Deferred government grants, Non-current","xbrli:monetaryItemType","instant"]
["OtherNoncurrentLiabilities","Other non-current liabilities","xbrli:monetaryItemType","instant"]
["NoncurrentLiabilities","Total non-current liabilities","xbrli:monetaryItemType","instant"]
["BorrowingsCurrent","Borrowings, current","xbrli:monetaryItemType","instant"]
["TradePayablesCurrent","Trade payables, current","xbrli:monetaryItemType","instant"]
["OtherCurrentFinancialLiabilities","Other current financial liabilities","xbrli:monetaryItemType","instant"]
["CurrentFinancialLiabilities","Total current financial liabilities","xbrli:monetaryItemType","instant"]
["OtherCurrentLiabilities","Other current liabilities","xbrli:monetaryItemType","instant"]
["ProvisionsCurrent","Provisions, current","xbrli:monetaryItemType","instant"]
["CurrentTaxLiabilities","Current tax liabilities (Net)","xbrli:monetaryItemType","instant"]
["DeferredGovernmentGrantsCurrent","Deferred government grants, Current","xbrli:monetaryItemType","instant"]
["CurrentLiabilities","Total current liabilities","xbrli:monetaryItemType","instant"]
["LiabilitiesDirectlyAssociatedWithAssetsInDisposalGroupClassifiedAsHeldForSale","Liabilities directly associated with assets in disposal group classified as held for sale","xbrli:monetaryItemType","instant"]
["RegulatoryDeferralAccountCreditBalancesAndRelatedDeferredTaxLiability","Regulatory deferral account credit balances and related deferred tax liability","xbrli:monetaryItemType","instant"]
["Liabilities","Total liabilities","xbrli:monetaryItemType","instant"]
["EquityAndLiabilities","Total equity and liabilites","xbrli:monetaryItemType","instant","\"Total Assets\" must match with \"Total Equity and Liabilities\" mentioned in sheet \"Asset Liabilities\""]
["DisclosureOfNotesOnAssetsAndLiabilitiesExplanatoryTextBlock","Disclosure of notes on assets and liabilities","nonnum:textBlockItemType","duration"]
["Segment"]
["DescriptionOfReportableSegment","Description Of reportable segments","xbrli:stringItemType","duration"]
["SegmentRevenue","Segment revenue","xbrli:monetaryItemType","duration"]
["SegmentRevenue","Total Segment Revenue","xbrli:monetaryItemType","duration"]
["InterSegmentRevenue","Less: Inter segment revenue","xbrli:monetaryItemType","duration"]
["SegmentRevenueFromOperations","Revenue  from  Operations ","xbrli:monetaryItemType","duration"]
["SegmentProfitLossBeforeTaxAndFinanceCosts","Profit (loss) before tax and interest","xbrli:monetaryItemType","duration"]
["SegmentProfitLossBeforeTaxAndFinanceCosts","Total  Profit  before  tax","xbrli:monetaryItemType","duration"]
["SegmentFinanceCosts","i. Finance cost","xbrli:monetaryItemType","duration"]
["OtherUnallocableExpenditureNetOffUnAllocableIncome","ii. Other Unallocable Expenditure net off Unallocable income","xbrli:monetaryItemType","duration"]
["SegmentProfitBeforeTax","Profit before tax","xbrli:monetaryItemType","duration"]
["SegmentAssets","Segment Asset ","xbrli:monetaryItemType","instant"]
["SegmentAssets","Total Segment Asset","xbrli:monetaryItemType","instant"]
["UnAllocableAssets","Un-allocable Assets","xbrli:monetaryItemType","instant"]
["NetSegmentAssets","Net Segment Asset","xbrli:monetaryItemType","instant"]
["SegmentLiabilities","Segment Liabilities","xbrli:monetaryItemType","instant"]
["SegmentLiabilities","Total Segment Liabilities","xbrli:monetaryItemType","instant"]
["UnAllocableLiabilities","Un-allocable Liabilities","xbrli:monetaryItemType","instant"]
["NetSegmentLiabilities","Net Segment Liabilities","xbrli:monetaryItemType","instant"]
["DisclosureOfNotesOnSegmentsExplanatoryTextBlock","Disclosure of notes on segments","nonnum:textBlockItemType","duration"]
["OCI"]
["DescriptionOfItemThatWillNotBeReclassifiedToProfitAndLoss","Description of item that will not be reclassified to profit and loss","xbrli:stringItemType","duration"]
["AmountOfItemThatWillNotBeReclassifiedToProfitAndLoss","Amount of item that will not be reclassified to profit and loss","xbrli:monetaryItemType","duration"]
["DescriptionOfItemThatWillBeReclassifiedToProfitAndLoss","Description of item that will be reclassified to profit and loss","xbrli:stringItemType","duration"]
["AmountOfItemThatWillBeReclassifiedToProfitAndLoss","Amount of item that will be reclassified to profit and loss","xbrli:monetaryItemType","duration"]
["AmountOfItemThatWillNotBeReclassifiedToProfitAndLoss","Amount of item that will not be reclassified to profit and loss","xbrli:monetaryItemType","duration"]
["IncomeTaxRelatingToItmesThatWillNotBeReclassifiedToProfitOrLoss","Income tax relating to items that will not be reclassified to profit or loss ","xbrli:monetaryItemType","duration"]
["AmountOfItemThatWillBeReclassifiedToProfitAndLoss","Amount of item that will be reclassified to profit and loss","xbrli:monetaryItemType","duration"]
["IncomeTaxRelatingToItmesThatWillBeReclassifiedToProfitOrLoss","Income tax relating to items that will be reclassified to profit or loss ","xbrli:monetaryItemType","duration"]
["OtherComprehensiveIncome","Total Other comprehensive income","xbrli:monetaryItemType","duration"]
["UniqueDocumentIdentificationNumber","Unique Document Identification Number(UDIN)","xbrli:stringItemType","duration"]
["Cash Flow Direct"]
["StatementOfCashFlowsAbstract","Statement of cash flows [Abstract]","xbrli:stringItemType","duration"]
["CashFlowsFromUsedInOperatingActivitiesAbstract","Cash flows from used in operating activities [Abstract]","xbrli:stringItemType","duration"]
["ClassesOfCashReceiptsFromOperatingActivitiesAbstract","Classes of cash receipts from operating activities [Abstract]","xbrli:stringItemType","duration"]
["ReceiptsFromSalesOfGoodsAndRenderingOfServices","Receipts from sales of goods and rendering of services","xbrli:monetaryItemType","duration"]
["ReceiptsFromRoyaltiesFeesCommissionsAndOtherRevenue","Receipts from royalties fees, commissions and other revenue","xbrli:monetaryItemType","duration"]
["ReceiptsFromContractsHeldForDealingOrTradingPurpose","Receipts from contracts held for dealing or trading purpose","xbrli:monetaryItemType","duration"]
["ReceiptsFromPremiumsAndClaimsAnnuitiesAndOtherPolicyBenefits","Receipts from premiums and claims annuities and other policy benefits","xbrli:monetaryItemType","duration"]
["ReceiptsFromRentsAndSubsequentSalesOfAssetsHeldForRentalToOthersAndSubsequentlyHeldForSale","Receipts from rents and subsequent sales of assets held for rental to others and subsequently held for sale","xbrli:monetaryItemType","duration"]
["OtherCashReceiptsFromOperatingActivities","Other cash receipts from operating activities","xbrli:monetaryItemType","duration"]
["ClassesOfCashPaymentsFromOperatingActivitiesAbstract","Classes of cash payments from operating activities [Abstract]","xbrli:stringItemType","duration"]
["PaymentsToSuppliersForGoodsAndServices","Payments to suppliers for goods and services","xbrli:monetaryItemType","duration"]
["PaymentsFromContractsHeldForDealingOrTradingPurpose","Payments from contracts held for dealing or trading purpose","xbrli:monetaryItemType","duration"]
["PaymentsToAndOnBehalfOfEmployees","Payments to and on behalf of employees","xbrli:monetaryItemType","duration"]
["PaymentsForPremiumsAndClaimsAnnuitiesAndOtherPolicyBenefits","Payments for premiums and claims, annuities and other policy benefits","xbrli:monetaryItemType","duration"]
["PaymentsToManufactureOrAcquireAssetsHeldForRentalToOthersAndSubsequentlyHeldForSale","Payments to manufacture or acquire assets held for rental to others and subsequently held for sale","xbrli:monetaryItemType","duration"]
["OtherCashPaymentsFromOperatingActivities","Other cash payments from operating activities","xbrli:monetaryItemType","duration"]
["CashFlowsFromUsedInOperations","Net cash flows from (used in) operations operating activities","xbrli:monetaryItemType","duration"]
["DividendsReceivedClassifiedAsOperatingActivities","Dividends received operating activities","xbrli:monetaryItemType","duration"]
["InterestPaidClassifiedAsOperatingActivities","Interest paid operating activities","xbrli:monetaryItemType","duration"]
["InterestReceivedClassifiedAsOperatingActivities","Interest received operating activities","xbrli:monetaryItemType","duration"]
["IncomeTaxesPaidRefundClassifiedAsOperatingActivities","Income taxes paid (refund) operating activities","xbrli:monetaryItemType","duration"]
["OtherInflowsOutflowsOfCashClassifiedAsOperatingActivities","Other inflows (outflows) of cash operating activities","xbrli:monetaryItemType","duration"]
["CashFlowsFromUsedInOperatingActivities","Net cash flows from (used in) operating activities","xbrli:monetaryItemType","duration"]
["CashFlowsFromUsedInInvestingActivitiesAbstract","Cash flows from used in investing activities [Abstract]","xbrli:stringItemType","duration"]
["CashFlowsFromLosingControlOfSubsidiariesOrOtherBusinessesClassifiedAsInvestingActivities","Cash flows from losing control of subsidiaries or other businesses investing activities","xbrli:monetaryItemType","duration"]
["CashFlowsUsedInObtainingControlOfSubsidiariesOrOtherBusinessesClassifiedAsInvestingActivities","Cash flows used in obtaining control of subsidiaries or other businesses investing activities","xbrli:monetaryItemType","duration"]
["OtherCashReceiptsFromSalesOfEquityOrDebtInstrumentsOfOtherEntitiesClassifiedAsInvestingActivities","Other cash receipts from sales of equity or debt instruments of other entities investing activities","xbrli:monetaryItemType","duration"]
["OtherCashPaymentsToAcquireEquityOrDebtInstrumentsOfOtherEntitiesClassifiedAsInvestingActivities","Other cash payments to acquire equity or debt instruments of other entities investing activities","xbrli:monetaryItemType","duration"]
["OtherCashReceiptsFromSalesOfInterestsInJointVenturesClassifiedAsInvestingActivities","Other cash receipts from sales of interests in joint ventures investing activities","xbrli:monetaryItemType","duration"]
["OtherCashPaymentsToAcquireInterestsInJointVenturesClassifiedAsInvestingActivities","Other cash payments to acquire interests in joint ventures investing activities","xbrli:monetaryItemType","duration"]
["ProceedsFromSalesOfPropertyPlantAndEquipmentClassifiedAsInvestingActivities","Proceeds from sales of property, plant and equipment investing activities","xbrli:monetaryItemType","duration"]
["PurchaseOfPropertyPlantAndEquipmentClassifiedAsInvestingActivities","Purchase of property, plant and equipment investing activities","xbrli:monetaryItemType","duration"]
["ProceedsFromSalesOfInvestmentPropertyClassifiedAsInvestingActivities","Proceeds from sales of investment property investing activities","xbrli:monetaryItemType","duration"]
["PurchaseOfInvestmentPropertyClassifiedAsInvestingActivities","Purchase of investment property investing activities","xbrli:monetaryItemType","duration"]
["ProceedsFromSalesOfGoodwillClassifiedAsInvestingActivities","Proceeds from sales of goodwill investing activities","xbrli:monetaryItemType","duration"]
["PurchaseOfGoodwillClassifiedAsInvestingActivities","Purchase of goodwill investing activities","xbrli:monetaryItemType","duration"]
["ProceedsFromSalesOfIntangibleAssetsClassifiedAsInvestingActivities","Proceeds from sales of intangible assets investing activities","xbrli:monetaryItemType","duration"]
["PurchaseOfIntangibleAssetsClassifiedAsInvestingActivities","Purchase of intangible assets investing activities","xbrli:monetaryItemType","duration"]
["ProceedsFromBiologicalAssetsOtherThanBearerPlantsClassifiedAsInvestingActivities","Proceeds from biological assets other than bearer plants investing activities","xbrli:monetaryItemType","duration"]
["PurchaseOfBiologicalAssetsOtherThanBearerPlantsClassifiedAsInvestingActivities","Purchase of biological assets other than bearer plants investing activities","xbrli:monetaryItemType","duration"]
["ProceedsFromSalesOfOtherLongTermAssetsClassifiedAsInvestingActivities","Proceeds from sales of other long-term assets investing activities","xbrli:monetaryItemType","duration"]
["PurchaseOfOtherLongTermAssetsClassifiedAsInvestingActivities","Purchase of other long-term assets investing activities","xbrli:monetaryItemType","duration"]
["CashAdvancesAndLoansMadeToOtherPartiesClassifiedAsInvestingActivities","Cash advances and loans made to other parties investing activities","xbrli:monetaryItemType","duration"]
["CashReceiptsFromRepaymentOfAdvancesAndLoansMadeToOtherPartiesClassifiedAsInvestingActivities","Cash receipts from repayment of advances and loans made to other parties investing activities","xbrli:monetaryItemType","duration"]
["CashPaymentsForFutureContractsForwardContractsOptionContractsAndSwapContractsClassifiedAsInvestingActivities","Cash payments for future contracts, forward contracts, option contracts and swap contracts investing activities","xbrli:monetaryItemType","duration"]
["CashReceiptsFromFutureContractsForwardContractsOptionContractsAndSwapContractsClassifiedAsInvestingActivities","Cash receipts from future contracts, forward contracts, option contracts and swap contracts investing activities","xbrli:monetaryItemType","duration"]
["DividendsReceivedClassifiedAsInvestingActivities","Dividends received investing activities","xbrli:monetaryItemType","duration"]
["InterestReceivedClassifiedAsInvestingActivities","Interest received investing activities","xbrli:monetaryItemType","duration"]
["IncomeTaxesPaidRefundClassifiedAsInvestingActivities","Income taxes paid (refund) investing activities","xbrli:monetaryItemType","duration"]
["OtherInflowsOutflowsOfCashClassifiedAsInvestingActivities","Other inflows (outflows) of cash investing activities","xbrli:monetaryItemType","duration"]
["ProceedsFromGovernmentGrantsClassifiedAsInvestingActivities","Proceeds from government grants investing activities","xbrli:monetaryItemType","duration"]
["CashFlowsFromUsedInInvestingActivities","Net cash flows from (used in) investing activities","xbrli:monetaryItemType","duration"]
["CashFlowsFromUsedInFinancingActivitiesAbstract","Cash flows from used in financing activities [Abstract]","xbrli:stringItemType","duration"]
["ProceedsFromChangesInOwnershipInterestsInSubsidiariesThatDoNotResultInLossOfControl","Proceeds from changes in ownership interests in subsidiaries that do not result in loss of control","xbrli:monetaryItemType","duration"]
["PaymentsFromChangesInOwnershipInterestsInSubsidiariesThatDoNotResultInLossOfControl","Payments from changes in ownership interests in subsidiaries that do not result in loss of control","xbrli:monetaryItemType","duration"]
["ProceedsFromIssuingSharesClassifiedAsFinancingActivities","Proceeds from issuing shares financing activities","xbrli:monetaryItemType","duration"]
["ProceedsFromIssuingOtherEquityInstruments","Proceeds from issuing other equity instruments financing activities","xbrli:monetaryItemType","duration"]
["PaymentsToAcquireOrRedeemEntitysShares","Payments to acquire or redeem entity's shares financing activities","xbrli:monetaryItemType","duration"]
["PaymentsOfOtherEquityInstruments","Payments of other equity instruments financing activities","xbrli:monetaryItemType","duration"]
["ProceedsFromExerciseOfStockOptions","Proceeds from exercise of stock options financing activities","xbrli:monetaryItemType","duration"]
["ProceedsFromIssuingDebenturesNotesBondsEtc","Proceeds from issuing debentures notes bonds etc financing activities","xbrli:monetaryItemType","duration"]
["ProceedsFromBorrowingsClassifiedAsFinancingActivities","Proceeds from borrowings financing activities","xbrli:monetaryItemType","duration"]
["RepaymentsOfBorrowingsClassifiedAsFinancingActivities","Repayments of borrowings financing activities","xbrli:monetaryItemType","duration"]
["PaymentsOfFinanceLeaseLiabilitiesClassifiedAsFinancingActivities","Payments of finance lease liabilities financing activities","xbrli:monetaryItemType","duration"]
["PaymentsOfLeaseLiabilitiesClassifiedAsFinancingActivities","Payments of lease liabilities financing activities","xbrli:monetaryItemType","duration"]
["DividendsPaidClassifiedAsFinancingActivities","Dividends paid financing activities","xbrli:monetaryItemType","duration"]
["InterestPaidClassifiedAsFinancingActivities","Interest paid financing activities","xbrli:monetaryItemType","duration"]
["IncomeTaxesPaidRefundClassifiedAsFinancingActivities","Income taxes paid (refund) financing activities","xbrli:monetaryItemType","duration"]
["OtherInflowsOutflowsOfCashClassifiedAsFinancingActivities","Other inflows (outflows) of cash financing activities","xbrli:monetaryItemType","duration"]
["CashFlowsFromUsedInFinancingActivities","Net cash flows from (used in) financing activities","xbrli:monetaryItemType","duration"]
["IncreaseDecreaseInCashAndCashEquivalentsBeforeEffectOfExchangeRateChanges","Net increase (decrease) in cash and cash equivalents before effect of exchange rate changes","xbrli:monetaryItemType","duration"]
["EffectOfExchangeRateChangesOnCashAndCashEquivalentsAbstract","Effect of exchange rate changes on cash and cash equivalents [Abstract]","xbrli:stringItemType","duration"]
["EffectOfExchangeRateChangesOnCashAndCashEquivalents","Effect of exchange rate changes on cash and cash equivalents","xbrli:monetaryItemType","duration"]
["IncreaseDecreaseInCashAndCashEquivalents","Net increase (decrease) in cash and cash equivalents","xbrli:monetaryItemType","duration"]
["CashAndCashEquivalentsCashFlowStatement","Cash and cash equivalents cash flow statement at beginning of period","xbrli:monetaryItemType","instant"]
["CashAndCashEquivalentsCashFlowStatement","Cash and cash equivalents cash flow statement at end of period","xbrli:monetaryItemType","instant"]
["Cash Flow Indirect"]
["ProfitBeforeTax","Profit before tax indirect","xbrli:monetaryItemType","duration"]
["AdjustmentsForReconcileProfitLossAbstract","Adjustments for reconcile profit (loss) [Abstract]","xbrli:stringItemType","duration"]
["AdjustmentsForFinanceCosts","Adjustments for finance costs","xbrli:monetaryItemType","duration"]
["AdjustmentsForDecreaseIncreaseInInventories","Adjustments for decrease (increase) in inventories","xbrli:monetaryItemType","duration"]
["AdjustmentsForDecreaseIncreaseInTradeReceivablesCurrent","Adjustments for decrease (increase) in trade receivables, current","xbrli:monetaryItemType","duration"]
["AdjustmentsForDecreaseIncreaseInTradeReceivablesNoncurrent","Adjustments for decrease (increase) in trade receivables, non-current","xbrli:monetaryItemType","duration"]
["AdjustmentsForDecreaseIncreaseInOtherCurrentAssets","Adjustments for decrease (increase) in other current assets","xbrli:monetaryItemType","duration"]
["AdjustmentsForDecreaseIncreaseInOtherNoncurrentAssets","Adjustments for decrease (increase) in other non-current assets","xbrli:monetaryItemType","duration"]
["AdjustmentsForOtherFinancialAssetsNoncurrent","Adjustments for other financial assets, non-current","xbrli:monetaryItemType","duration"]
["AdjustmentsForOtherFinancialAssetsCurrent","Adjustments for other financial assets, current","xbrli:monetaryItemType","duration"]
["AdjustmentsForOtherBankBalances","Adjustments for other bank balances","xbrli:monetaryItemType","duration"]
["AdjustmentsForIncreaseDecreaseInTradePayablesCurrent","Adjustments for increase (decrease) in trade payables, current","xbrli:monetaryItemType","duration"]
["AdjustmentsForIncreaseDecreaseInTradePayablesNoncurrent","Adjustments for increase (decrease) in trade payables, non-current","xbrli:monetaryItemType","duration"]
["AdjustmentsForIncreaseDecreaseInOtherCurrentLiabilities","Adjustments for increase (decrease) in other current liabilities","xbrli:monetaryItemType","duration"]
["AdjustmentsForIncreaseDecreaseInOtherNoncurrentLiabilities","Adjustments for increase (decrease) in other non-current liabilities","xbrli:monetaryItemType","duration"]
["AdjustmentsForDepreciationAndAmortisationExpense","Adjustments for depreciation and amortisation expense","xbrli:monetaryItemType","duration"]
["AdjustmentsForImpairmentLossReversalOfImpairmentLossRecognisedInProfitOrLoss","Adjustments for impairment loss reversal of impairment loss recognised in profit or loss","xbrli:monetaryItemType","duration"]
["AdjustmentsForProvisionsCurrent","Adjustments for provisions, current","xbrli:monetaryItemType","duration"]
["AdjustmentsForProvisionsNoncurrent","Adjustments for provisions, non-current","xbrli:monetaryItemType","duration"]
["AdjustmentsForOtherFinancialLiabilitiesCurrent","Adjustments for other financial liabilities, current","xbrli:monetaryItemType","duration"]
["AdjustmentsForOtherFinancialLiabilitiesNoncurrent","Adjustments for other financial liabilities, non-current","xbrli:monetaryItemType","duration"]
["AdjustmentsForUnrealisedForeignExchangeLossesGains","Adjustments for unrealised foreign exchange losses gains","xbrli:monetaryItemType","duration"]
["AdjustmentsForDividendIncome","Adjustments for dividend income","xbrli:monetaryItemType","duration"]
["AdjustmentsForInterestIncome","Adjustments for interest income","xbrli:monetaryItemType","duration"]
["AdjustmentsForSharebasedPayments","Adjustments for share-based payments","xbrli:monetaryItemType","duration"]
["AdjustmentsForFairValueGainsLosses","Adjustments for fair value losses (gains)","xbrli:monetaryItemType","duration"]
["AdjustmentsForUndistributedProfitsOfAssociates","Adjustments for undistributed profits of associates","xbrli:monetaryItemType","duration"]
["OtherAdjustmentsForWhichCashEffectsAreInvestingOrFinancingCashFlow","Other adjustments for which cash effects are investing or financing cash flow","xbrli:monetaryItemType","duration"]
["OtherAdjustmentsToReconcileProfitLoss","Other adjustments to reconcile profit (loss)","xbrli:monetaryItemType","duration"]
["OtherAdjustmentsForNoncashItems","Other adjustments for non-cash items","xbrli:monetaryItemType","duration"]
["ShareOfProfitAndLossFromPartnershipFirmOrAssociationOfPersonsOrLimitedLiabilityPartnerships","Share of profit and loss from partnership firm or association of persons or limited liability partnerships","xbrli:monetaryItemType","duration"]
["AdjustmentsForReconcileProfitLoss","Total adjustments for reconcile profit (loss)","xbrli:monetaryItemType","duration"]
["ProceedsFromSalesOfIntangibleAssetsUnderDevelopment","Proceeds from sales of intangible assets under development","xbrli:monetaryItemType","duration"]
["PurchaseOfIntangibleAssetsUnderDevelopment","Purchase of intangible assets under development","xbrli:monetaryItemType","duration"]
["CashFlowsFromUsedInFinancingActivitiesAbstract","Cash flows from used in financing activities [Abstract]","xbrli:stringItemType","duration"]
["ProceedsFromChangesInOwnershipInterestsInSubsidiaries","Proceeds from changes in ownership interests in subsidiaries","xbrli:monetaryItemType","duration"]
["PaymentsFromChangesInOwnershipInterestsInSubsidiaries","Payments from changes in ownership interests in subsidiaries","xbrli:monetaryItemType","duration"]
["CashReceiptsFromShareOfProfitsOfPartnershipFirmOrAssociationOfPersonsOrLimitedLiabilityPartnerships","Cash receipts from share of profits of partnership firm or association of persons or limited liability partnerships","xbrli:monetaryItemType","duration"]
["CashPaymentForInvestmentInPartnershipFirmOrAssociationOfPersonsOrLimitedLiabilityPartnerships","Cash payment for investment in partnership firm or association of persons or limited liability partnerships","xbrli:monetaryItemType","duration"]
["WhetherCashFlowStatementIsApplicableOnCompany","Whether cash flow statement is applicable on company","xbrli:booleanItemType","duration"]
["TypeOfCashFlowStatement","Type of cash flow statement","xbrli:stringItemType","duration"]

{"sheet":"Asset Liabilities","index":4,"n_rows":85,"n_cols":14,"rows_kept":85,"merged":[[7,3,7,5],[8,3,8,4],[9,3,9,4],[10,3,10,4],[11,3,11,4],[12,3,12,4],[13,3,13,5]]}
{"$rows_empty":7}
[{"$nulls":3},"Statement of Asset and Liabilities"]
[{"$nulls":3},"Particulars",null,"Half year ended        (dd-mm-yyyy)"]
[{"$nulls":3},"Date of start of reporting period",null,"01-04-2020"]
[{"$nulls":3},"Date of end of reporting period",null,"30-09-2020"]
[{"$nulls":3},"Whether results are audited or unaudited",null,{"$f":"+IF(COUNTA('General Info'!E21),'General Info'!E21,\"\")","v":"Unaudited"},{"$nulls":7},"Audited"]
[{"$nulls":3},"Nature of report standalone or consolidated",null,{"$f":"+IF(COUNTA('General Info'!E20),'General Info'!E20,\"\")","v":"Standalone"},{"$nulls":7},"Unaudited"]
[]
[{"$nulls":4},"  Assets"]
[{"$nulls":3},1,"    Non-current assets"]
[{"$nulls":4},"Property, plant and equipment",{"v":162.83,"d":"162.830"}]
[{"$nulls":4},"Capital work-in-progress",{"v":0,"d":"0.000"}]
[{"$nulls":4},"Investment property",{"v":417.15,"d":"417.150"}]
[{"$nulls":4},"Goodwill",{"v":0,"d":"0.000"}]
[{"$nulls":4},"Other intangible assets",{"v":0,"d":"0.000"}]
[{"$nulls":4},"Intangible assets under development",{"v":0,"d":"0.000"}]
[{"$nulls":4},"Biological assets other than bearer plants",{"v":0,"d":"0.000"}]
[{"$nulls":4},"Investments accounted for using equity method",{"v":0,"d":"0.000"}]
[{"$nulls":4},"Non-current financial assets"]
[{"$nulls":4},"Non-current investments",{"v":0,"d":"0.000"}]
[{"$nulls":4},"Trade receivables, non-current",{"v":0,"d":"0.000"}]
[{"$nulls":4},"Loans, non-current",{"v":0,"d":"0.000"}]
[{"$nulls":4},"Other non-current financial assets",{"v":733.56,"d":"733.560"}]
[{"$nulls":4},"Total non-current financial assets",{"$f":"IF(COUNT(F26:F29),SUM(F26:F29),\"\")","v":{"v":733.56,"d":"733.560"}}]
[{"$nulls":4},"Deferred tax assets (net)"]
[{"$nulls":4},"Other non-current assets"]
[{"$nulls":4},"Total non-current assets",{"$f":"IF(COUNT(F17:F24,F26:F29,F31:F32),SUM(F17:F24,F26:F29,F31:F32),\"\")","v":{"v":1313.54,"d":"1313.540"}}]
[{"$nulls":3},2,"Current assets"]
[{"$nulls":4},"Inventories",{"v":491.6,"d":"491.600"}]
[{"$nulls":4},"Current financial asset"]
[{"$nulls":4},"Current investments",{"v":0,"d":"0.000"}]
[{"$nulls":4},"Trade receivables, current",{"v":155.16,"d":"155.160"}]
[{"$nulls":4},"Cash and cash equivalents",{"v":333.33,"d":"333.330"}]
[{"$nulls":4},"Bank balance other than cash and cash equivalents",{"v":621.19,"d":"621.190"}]
[{"$nulls":4},"Loans, current",{"v":116.15,"d":"116.150"}]
[{"$nulls":4},"Other current financial assets"]
[{"$nulls":4},"Total current financial assets",{"$f":"IF(COUNT(F37:F42),SUM(F37:F42),\"\")","v":{"v":1225.8300000000002,"d":"1225.830"}}]
[{"$nulls":4},"Current tax assets (net)",{"v":126.76,"d":"126.760"}]
[{"$nulls":4},"Other current assets",{"v":76.81,"d":"76.810"}]
[{"$nulls":4},"Total current assets",{"$f":"IF(COUNT(F35,F37:F42,F44:F45),SUM(F35,F37:F42,F44:F45),\"\")","v":{"v":1921,"d":"1921.000"}}]
[{"$nulls":3},3,"Non-current assets classified as held for sale"]
[{"$nulls":3},4,"Regulatory deferral account debit balances and related deferred tax Assets"]
[{"$nulls":4},"Total assets",{"$f":"IF(COUNT(F33,F46:F48),SUM(F33,F46:F48),\"\")","v":{"v":3234.54,"d":"3234.540"}}]
[{"$nulls":4},"Equity and liabilities"]
[{"$nulls":3},1,"Equity"]
[{"$nulls":4},"Equity attributable to owners of parent"]
[{"$nulls":4},"Equity share capital",{"v":824.97,"d":"824.970"}]
[{"$nulls":4},"Other equity",{"v":1824.6,"d":"1824.600"}]
[{"$nulls":4},"Total equity attributable to owners of parent",{"$f":"IF(COUNT(F53:F54),SUM(F53:F54),\"\")","v":{"v":2649.5699999999997,"d":"2649.570"}}]
[{"$nulls":4},"Non controlling interest"]
[{"$nulls":4},"Total equity",{"$f":"IF(COUNT(F55:F56),SUM(F55:F56),\"\")","v":{"v":2649.5699999999997,"d":"2649.570"}}]
[{"$nulls":3},2,"Liabilities"]
[{"$nulls":4},"Non-current liabilities"]
[{"$nulls":4},"Non-current financial liabilities"]
[{"$nulls":4},"Borrowings, non-current",{"v":0,"d":"0.000"}]
[{"$nulls":4},"Trade payables, non-current"]
[{"$nulls":4},"Other non-current financial liabilities"]
[{"$nulls":4},"Total non-current financial liabilities",{"$f":"IF(COUNT(F61:F63),SUM(F61:F63),\"\")","v":{"v":0,"d":"0.000"}}]
[{"$nulls":4},"Provisions, non-current",{"v":0,"d":"0.000"}]
[{"$nulls":4},"Deferred tax liabilities (net)",{"v":11.84,"d":"11.840"}]
[{"$nulls":4},"Deferred government grants, Non-current",{"v":25.09,"d":"25.090"}]
[{"$nulls":4},"Other non-current liabilities"]
[{"$nulls":4},"Total non-current liabilities",{"$f":"IF(COUNT(F61:F63,F65:F68),SUM(F61:F63,F65:F68),\"\")","v":{"v":36.93,"d":"36.930"}}]
[{"$nulls":4},"Current liabilities"]
[{"$nulls":4},"Current financial liabilities"]
[{"$nulls":4},"Borrowings, current",{"v":306.36,"d":"306.360"}]
[{"$nulls":4},"Trade payables, current",{"v":124.8,"d":"124.800"}]
[{"$nulls":4},"Other current financial liabilities",{"v":66,"d":"66.000"}]
[{"$nulls":4},"Total current financial liabilities",{"$f":"IF(COUNT(F72:F74),SUM(F72:F74),\"\")","v":{"v":497.16,"d":"497.160"}}]
[{"$nulls":4},"Other current liabilities",{"v":43.38,"d":"43.380"}]
[{"$nulls":4},"Provisions, current",{"v":7.5,"d":"7.500"}]
[{"$nulls":4},"Current tax liabilities (Net)",{"v":0,"d":"0.000"}]
[{"$nulls":4},"Deferred government grants, Current",{"v":0,"d":"0.000"}]
[{"$nulls":4},"Total current liabilities",{"$f":"IF(COUNT(F72:F74,F76:F79),SUM(F72:F74,F76:F79),\"\")","v":{"v":548.0400000000001,"d":"548.040"}}]
[{"$nulls":3},3,"Liabilities directly associated with assets in disposal group classified as held for sale"]
[{"$nulls":3},4,"Regulatory deferral account credit balances and related deferred tax liability"]
[{"$nulls":4},"Total liabilities",{"$f":"IF(COUNT(F69,F80,F81:F82),SUM(F69,F80,F81:F82),\"\")","v":{"v":584.97,"d":"584.970"}}]
[{"$nulls":4},"Total equity and liabilites",{"$f":"IF(COUNT(F57,F83),SUM(F57,F83),\"\")","v":{"v":3234.54,"d":"3234.540"}}]
[{"$nulls":4},"Disclosure of notes on assets and liabilities"]

{"sheet":"TextBlock","index":5,"n_rows":1,"n_cols":5,"rows_kept":1,"hidden":true}
[{"$nulls":4},5]

{"sheet":"Segment","index":6,"n_rows":99,"n_cols":19,"rows_kept":99,"merged":[[7,3,7,6],[8,3,8,4],[9,3,9,4],[10,3,10,4],[11,3,11,4],[12,3,12,4],[13,5,13,6],[14,5,14,6],[34,5,34,6],[35,5,35,6],[56,5,56,6],[57,5,57,6],[77,5,77,6],[78,5,78,6]]}
{"$rows_empty":7}
[{"$nulls":3},"Format for Reporting Segmenet wise Revenue, Results and Capital Employed along with the company results"]
[{"$nulls":3},"Particulars",null,"3 months/ 6 month ended (dd-mm-yyyy)","Year to date figures for current period ended                (dd-mm-yyyy)"]
[{"$nulls":3},"Date of start of reporting period",null,"01-07-2020","01-04-2020"]
[{"$nulls":3},"Date of end of reporting period",null,"30-09-2020","30-09-2020"]
[{"$nulls":3},"Whether accounts are audited or unaudited",null,{"$f":"+IF(COUNTA('General Info'!E21),'General Info'!E21,\"\")","v":"Unaudited"},{"$f":"+IF(COUNTA('General Info'!E21),'General Info'!E21,\"\")","v":"Unaudited"},{"$nulls":7},"Audited"]
[{"$nulls":3},"Nature of report standalone or consolidated",null,{"$f":"+IF(COUNTA('General Info'!E20),'General Info'!E20,\"\")","v":"Standalone"},{"$f":"+IF(COUNTA('General Info'!E20),'General Info'!E20,\"\")","v":"Standalone"},{"$nulls":7},"Unaudited"]
[{"$nulls":3},1,"Segment Revenue (Income) "]
[{"$nulls":4},"(net sale/income from each segment should be disclosed)"]
[{"$nulls":3},1,{"$nulls":14},{"$f":"+IF(COUNT(F16),+F16,\"\")","v":""}]
[{"$nulls":3},2,{"$nulls":14},{"$f":"+IF(COUNT(F17),+F17,\"\")","v":""}]
[{"$nulls":3},3,{"$nulls":14},""]
[{"$nulls":3},4,{"$nulls":14},""]
[{"$nulls":3},5,{"$nulls":14},""]
[{"$nulls":3},6,{"$nulls":14},""]
[{"$nulls":3},7,{"$nulls":14},""]
[{"$nulls":3},8,{"$nulls":14},""]
[{"$nulls":3},9,{"$nulls":14},""]
[{"$nulls":3},10,{"$nulls":14},""]
[{"$nulls":3},11,{"$nulls":14},""]
[{"$nulls":3},12,{"$nulls":14},""]
[{"$nulls":3},13,{"$nulls":14},""]
[{"$nulls":3},14,{"$nulls":14},""]
[{"$nulls":3},15,{"$nulls":14},""]
[{"$nulls":4},"Total Segment Revenue",{"$f":"+IF(COUNT(F16:F30),SUM(F16:F30),\"\")","v":""},{"$f":"+IF(COUNT(G16:G30),SUM(G16:G30),\"\")","v":""},{"$nulls":11},""]
[{"$nulls":4},"Less: Inter segment revenue",{"$nulls":13},""]
[{"$nulls":4},"Revenue  from  operations ",{"$f":"+IF(COUNT(F31:F32),SUM(F31)-SUM(F32),\"\")","v":""},{"$f":"+IF(COUNT(G31:G32),SUM(G31)-SUM(G32),\"\")","v":""},{"$nulls":11},""]
[{"$nulls":18},""]
[{"$nulls":3},2,"Segment Result",{"$nulls":13},""]
[{"$nulls":4},"Profit (+) / Loss (-) before tax and interest from each segment",{"$nulls":13},""]
[{"$nulls":3},1,{"$f":"+IF(COUNTA(E16),+E16,\"\")","v":""},{"$nulls":13},""]
[{"$nulls":3},2,{"$f":"+IF(COUNTA(E17),+E17,\"\")","v":""},{"$nulls":13},""]
[{"$nulls":3},3,"",{"$nulls":13},""]
[{"$nulls":3},4,"",{"$nulls":13},""]
[{"$nulls":3},5,"",{"$nulls":13},""]
[{"$nulls":3},6,"",{"$nulls":13},""]
[{"$nulls":3},7,"",{"$nulls":13},""]
[{"$nulls":3},8,"",{"$nulls":13},""]
[{"$nulls":3},9,"",{"$nulls":13},""]
[{"$nulls":3},10,"",{"$nulls":13},""]
[{"$nulls":3},11,"",{"$nulls":13},""]
[{"$nulls":3},12,"",{"$nulls":13},""]
[{"$nulls":3},13,"",{"$nulls":13},""]
[{"$nulls":3},14,"",{"$nulls":13},""]
[{"$nulls":3},15,"",{"$nulls":13},""]
[{"$nulls":4},"Total  Profit  before  tax",{"$f":"+IF(COUNT(F37:F51),SUM(F37:F51),\"\")","v":""},{"$f":"+IF(COUNT(G37:G51),SUM(G37:G51),\"\")","v":""},{"$nulls":11},""]
[{"$nulls":4},"i. Finance cost",{"$nulls":13},""]
[{"$nulls":4},"ii. Other Unallocable Expenditure net off Unallocable income",{"$nulls":13},""]
[{"$nulls":4},"Profit before tax",{"$f":"+IF(COUNT(F52:F54),SUM(F52)-SUM(F53)-SUM(F54),\"\")","v":""},{"$f":"+IF(COUNT(G52:G54),SUM(G52)-SUM(G53)-SUM(G54),\"\")","v":""},{"$nulls":11},""]
[{"$nulls":18},""]
[{"$nulls":3},3,"(Segment Asset - Segment Liabilities)",{"$nulls":13},""]
[{"$nulls":4},"Segment Asset ",{"$nulls":13},""]
[{"$nulls":3},{"$f":"+D58+1","v":1},{"$f":"+IF(COUNTA(E16),+E16,\"\")","v":""},{"$nulls":13},""]
[{"$nulls":3},2,"",{"$nulls":13},""]
[{"$nulls":3},3,"",{"$nulls":13},""]
[{"$nulls":3},4,"",{"$nulls":13},""]
[{"$nulls":3},5,"",{"$nulls":13},""]
[{"$nulls":3},6,"",{"$nulls":13},""]
[{"$nulls":3},7,"",{"$nulls":13},""]
[{"$nulls":3},8,"",{"$nulls":13},""]
[{"$nulls":3},9,"",{"$nulls":13},""]
[{"$nulls":3},{"$f":"+D67+1","v":10},"",{"$nulls":13},""]
[{"$nulls":3},11,"",{"$nulls":13},""]
[{"$nulls":3},12,"",{"$nulls":13},""]
[{"$nulls":3},13,"",{"$nulls":13},""]
[{"$nulls":3},14,"",{"$nulls":13},""]
[{"$nulls":3},15,"",{"$nulls":13},""]
[{"$nulls":4},"Total Segment Asset",{"$f":"+IF(COUNT(F59:F73),SUM(F59:F73),\"\")","v":""},{"$f":"+IF(COUNT(G59:G73),SUM(G59:G73),\"\")","v":""},{"$nulls":11},""]
[{"$nulls":4},"Un-allocable Assets",{"$nulls":13},""]
[{"$nulls":4},"Net Segment Asset",{"$f":"+IF(COUNT(F74:F75),SUM(F74)+SUM(F75),\"\")","v":""},{"$f":"+IF(COUNT(G74:G75),SUM(G74)+SUM(G75),\"\")","v":""},{"$nulls":11},""]
[{"$nulls":18},""]
[{"$nulls":3},4,"Segment Liabilities",{"$nulls":13},""]
[{"$nulls":4},"Segment Liabilities",{"$nulls":13},""]
[{"$nulls":3},1,{"$f":"+IF(COUNTA(E16),+E16,\"\")","v":""},{"$nulls":13},""]
[{"$nulls":3},2,{"$f":"+IF(COUNTA(E17),+E17,\"\")","v":""},{"$nulls":13},{"$f":"+IF(COUNT(F81),+F81,\"\")","v":""}]
[{"$nulls":3},3,{"$f":"+IF(COUNTA(E18),+E18,\"\")","v":""},{"$nulls":13},""]
[{"$nulls":3},4,"",{"$nulls":13},""]
[{"$nulls":3},5,"",{"$nulls":13},""]
[{"$nulls":3},6,"",{"$nulls":13},""]
[{"$nulls":3},7,"",{"$nulls":13},""]
[{"$nulls":3},8,"",{"$nulls":13},""]
[{"$nulls":3},9,{"$f":"+IF(COUNTA(E24),+E24,\"\")","v":""},{"$nulls":13},""]
[{"$nulls":3},10,{"$f":"+IF(COUNTA(E25),+E25,\"\")","v":""},{"$nulls":13},""]
[{"$nulls":3},11,{"$f":"+IF(COUNTA(E26),+E26,\"\")","v":""},{"$nulls":13},""]
[{"$nulls":3},12,"",{"$nulls":13},""]
[{"$nulls":3},13,"",{"$nulls":13},""]
[{"$nulls":3},14,"",{"$nulls":13},""]
[{"$nulls":3},15,"",{"$nulls":13},""]
[{"$nulls":4},"Total Segment Liabilities",{"$f":"+IF(COUNT(F80:F94),SUM(F80:F94),\"\")","v":""},{"$f":"+IF(COUNT(G80:G94),SUM(G80:G94),\"\")","v":""},{"$nulls":11},""]
[{"$nulls":4},"Un-allocable Liabilities",{"$nulls":13},""]
[{"$nulls":4},"Net Segment Liabilities",{"$f":"+IF(COUNT(F95:F96),SUM(F95)+SUM(F96),\"\")","v":""},{"$f":"+IF(COUNT(G95:G96),SUM(G95)+SUM(G96),\"\")","v":""},{"$nulls":11},""]
[]
[{"$nulls":4},"Disclosure of notes on segments"]

{"sheet":"OCI","index":7,"n_rows":21,"n_cols":19,"rows_kept":21,"merged":[[5,1,5,4],[6,1,6,2],[11,3,11,4],[12,3,12,4],[16,3,16,4]]}
[{"$nulls":4},0,0,0]
[{"$nulls":18},{"$f":"+IF(COUNT(D2),D2,\"\")","v":""}]
[]
[]
[]
[null,"Other Comprehensive Income"]
[null,"Particulars",null,"3 months/ 6 month ended         (dd-mm-yyyy)","Year to date figures for current period ended                              (dd-mm-yyyy)"]
[null,"A","Date of start of reporting period","01-07-2020","01-04-2020"]
[null,"B","Date of end of reporting period","30-09-2020","30-09-2020"]
[null,"C","Whether results are audited or unaudited",{"$f":"+IF(COUNTA('Financial Results'!F12),'Financial Results'!F12,\"\")","v":"Unaudited"},{"$f":"+IF(COUNTA('Financial Results'!F12),'Financial Results'!F12,\"\")","v":"Unaudited"}]
[null,"D","Nature of report standalone or consolidated",{"$f":"+IF(COUNTA('Financial Results'!F13),'Financial Results'!F13,\"\")","v":"Standalone"},{"$f":"+IF(COUNTA('Financial Results'!G13),'Financial Results'!G13,\"\")","v":"Standalone"}]
[null,null,"Other comprehensive income [Abstract]"]
[null,1,"Amount of items that will not be reclassified to profit and loss"]
[]
[null,null,"Total Amount of items that will not be reclassified to profit and loss",{"$f":"IF(COUNT(D13:D14),SUM(D13:D14),\"\")","v":""},{"$f":"IF(COUNT(E13:E14),SUM(E13:E14),\"\")","v":""}]
[null,2,"Income tax relating to items that will not be reclassified to profit or loss "]
[null,3,"Amount of items that will be reclassified to profit and loss"]
[]
[null,null,"Total Amount of items that will be reclassified to profit and loss",{"$f":"IF(COUNT(D17:D18),SUM(D17:D18),\"\")","v":""},{"$f":"IF(COUNT(E17:E18),SUM(E17:E18),\"\")","v":""}]
[null,4,"Income tax relating to items that will be reclassified to profit or loss "]
[null,5,"Total Other comprehensive income",{"$f":"IF(COUNT(D15,D16,D19,D20),SUM(D15)-SUM(D16)+SUM(D19)-SUM(D20),\"\")","v":""},{"$f":"IF(COUNT(E15,E16,E19,E20),SUM(E15)-SUM(E16)+SUM(E19)-SUM(E20),\"\")","v":""}]

{"sheet":"Cash Flow Direct","index":8,"n_rows":91,"n_cols":18,"rows_kept":91,"hidden":true,"merged":[[7,3,7,5],[8,3,8,4],[13,4,13,5]]}
{"$rows_empty":7}
[{"$nulls":3},"Cash flow statement,direct"]
[{"$nulls":3},"Particulars",null,"6 months ended         (dd-mm-yyyy)"]
[{"$nulls":3},"A","Date of start of reporting period","01-04-2020"]
[{"$nulls":3},"B","Date of end of reporting period","30-09-2020"]
[{"$nulls":3},"C","Whether results are audited or unaudited",{"$f":"+IF(COUNTA('General Info'!E21),'General Info'!E21,\"\")","v":"Unaudited"},{"$nulls":7},"Audited"]
[{"$nulls":3},"D","Nature of report standalone or consolidated",{"$f":"+IF(COUNTA('General Info'!E20),'General Info'!E20,\"\")","v":"Standalone"},{"$nulls":7},"Unaudited"]
[{"$nulls":3},"Part I","Blue color marked fields are non-mandatory.                   "]
[{"$nulls":4},"Statement of cash flows",{"$nulls":4},"Statement of cash flows [Abstract]"]
[{"$nulls":4},"Whether cash flow statement is applicable on company",{"$f":"+IF(COUNTA('General Info'!E26),'General Info'!E26,\"\")","v":"Yes"},{"$nulls":3},"Cash flows from used in operating activities [Abstract]"]
[{"$nulls":4},"Cash flows from used in operating activities",{"$nulls":4},"Cash flows from used in operating activities [Abstract]"]
[{"$nulls":4},"Classes of cash receipts from operating activities",{"$nulls":4},"Classes of cash receipts from operating activities [Abstract]"]
[{"$nulls":4},"Receipts from sales of goods and rendering of services",{"$nulls":4},"Receipts from sales of goods and rendering of services",{"$nulls":7},{"$f":"+IF(COUNT(F19),+F19,\"\")","v":""}]
[{"$nulls":4},"Receipts from royalties fees, commissions and other revenue",{"$nulls":4},"Receipts from royalties fees, commissions and other revenue",{"$nulls":7},{"$f":"+IF(COUNT(F20),+F20,\"\")","v":""}]
[{"$nulls":4},"Receipts from contracts held for dealing or trading purpose",{"$nulls":4},"Receipts from contracts held for dealing or trading purpose",{"$nulls":7},""]
[{"$nulls":4},"Receipts from premiums and claims annuities and other policy benefits",{"$nulls":4},"Receipts from premiums and claims annuities and other policy benefits",{"$nulls":7},""]
[{"$nulls":4},"Receipts from rents and subsequent sales of assets held for rental to others and subsequently held for sale",{"$nulls":4},"Receipts from rents and subsequent sales of assets held for rental to others and subsequently held for sale",{"$nulls":7},""]
[{"$nulls":4},"Other cash receipts from operating activities",{"$nulls":4},"Other cash receipts from operating activities",{"$nulls":7},""]
[{"$nulls":4},"Classes of cash payments from operating activities",{"$nulls":4},"Classes of cash payments from operating activities [Abstract]",{"$nulls":7},""]
[{"$nulls":4},"Payments to suppliers for goods and services",{"$nulls":4},"Payments to suppliers for goods and services",{"$nulls":7},""]
[{"$nulls":4},"Payments from contracts held for dealing or trading purpose",{"$nulls":4},"Payments from contracts held for dealing or trading purpose",{"$nulls":7},""]
[{"$nulls":4},"Payments to and on behalf of employees",{"$nulls":4},"Payments to and on behalf of employees",{"$nulls":7},""]
[{"$nulls":4},"Payments for premiums and claims, annuities and other policy benefits",{"$nulls":4},"Payments for premiums and claims, annuities and other policy benefits",{"$nulls":7},""]
[{"$nulls":4},"Payments to manufacture or acquire assets held for rental to others and subsequently held for sale",{"$nulls":4},"Payments to manufacture or acquire assets held for rental to others and subsequently held for sale",{"$nulls":7},""]
[{"$nulls":4},"Other cash payments from operating activities",{"$nulls":4},"Other cash payments from operating activities",{"$nulls":7},""]
[{"$nulls":4},"Net cash flows from (used in) operations",{"$f":"IF(COUNT(F19:F31),ROUND(SUM(F19:F24)-SUM(F26:F31),3),\"\")","v":""},{"$nulls":3},"Net cash flows from (used in) operations operating activities",{"$nulls":7},""]
[{"$nulls":4},"Dividends received",{"$nulls":4},"Dividends received operating activities",{"$nulls":7},""]
[{"$nulls":4},"Interest paid",{"$nulls":4},"Interest paid operating activities",{"$nulls":7},""]
[{"$nulls":4},"Interest received",{"$nulls":4},"Interest received operating activities",{"$nulls":7},""]
[{"$nulls":4},"Income taxes paid (refund)",{"$nulls":4},"Income taxes paid (refund) operating activities",{"$nulls":7},""]
[{"$nulls":4},"Other inflows (outflows) of cash",{"$nulls":4},"Other inflows (outflows) of cash operating activities",{"$nulls":7},""]
[{"$nulls":4},"Net cash flows from (used in) operating activities",{"$f":"IF(COUNT(F32:F37),ROUND(SUM(F32)+SUM(F33)-SUM(F34)+SUM(F35)-SUM(F36)+SUM(F37),3),\"\")","v":""},{"$nulls":3},"Net cash flows from (used in) operating activities",{"$nulls":7},""]
[{"$nulls":4},"Cash flows from used in investing activities",{"$nulls":4},"Cash flows from used in investing activities [Abstract]",{"$nulls":7},""]
[{"$nulls":4},"Cash flows from losing control of subsidiaries or other businesses",{"$nulls":4},"Cash flows from losing control of subsidiaries or other businesses investing activities",{"$nulls":7},""]
[{"$nulls":4},"Cash flows used in obtaining control of subsidiaries or other businesses",{"$nulls":4},"Cash flows used in obtaining control of subsidiaries or other businesses investing activities",{"$nulls":7},""]
[{"$nulls":4},"Other cash receipts from sales of equity or debt instruments of other entities",{"$nulls":4},"Other cash receipts from sales of equity or debt instruments of other entities investing activities",{"$nulls":7},""]
[{"$nulls":4},"Other cash payments to acquire equity or debt instruments of other entities",{"$nulls":4},"Other cash payments to acquire equity or debt instruments of other entities investing activities",{"$nulls":7},""]
[{"$nulls":4},"Other cash receipts from sales of interests in joint ventures",{"$nulls":4},"Other cash receipts from sales of interests in joint ventures investing activities",{"$nulls":7},""]
[{"$nulls":4},"Other cash payments to acquire interests in joint ventures",{"$nulls":4},"Other cash payments to acquire interests in joint ventures investing activities",{"$nulls":7},""]
[{"$nulls":4},"Proceeds from sales of property, plant and equipment",{"$nulls":4},"Proceeds from sales of property, plant and equipment investing activities",{"$nulls":7},""]
[{"$nulls":4},"Purchase of property, plant and equipment",{"$nulls":4},"Purchase of property, plant and equipment investing activities",{"$nulls":7},""]
[{"$nulls":4},"Proceeds from sales of investment property",{"$nulls":4},"Proceeds from sales of investment property investing activities",{"$nulls":7},""]
[{"$nulls":4},"Purchase of investment property",{"$nulls":4},"Purchase of investment property investing activities",{"$nulls":7},""]
[{"$nulls":4},"Proceeds from sales of goodwill",{"$nulls":4},"Proceeds from sales of goodwill investing activities",{"$nulls":7},""]
[{"$nulls":4},"Purchase of goodwill",{"$nulls":4},"Purchase of goodwill investing activities",{"$nulls":7},""]
[{"$nulls":4},"Proceeds from sales of intangible assets",{"$nulls":4},"Proceeds from sales of intangible assets investing activities",{"$nulls":7},""]
[{"$nulls":4},"Purchase of intangible assets",{"$nulls":4},"Purchase of intangible assets investing activities",{"$nulls":7},""]
[{"$nulls":4},"Proceeds from biological assets other than bearer plants",{"$nulls":4},"Proceeds from biological assets other than bearer plants investing activities",{"$nulls":7},""]
[{"$nulls":4},"Purchase of biological assets other than bearer plants",{"$nulls":4},"Purchase of biological assets other than bearer plants investing activities",{"$nulls":7},""]
[{"$nulls":4},"Proceeds from sales of other long-term assets",{"$nulls":4},"Proceeds from sales of other long-term assets investing activities",{"$nulls":7},""]
[{"$nulls":4},"Purchase of other long-term assets",{"$nulls":4},"Purchase of other long-term assets investing activities",{"$nulls":7},""]
[{"$nulls":4},"Cash advances and loans made to other parties",{"$nulls":4},"Cash advances and loans made to other parties investing activities",{"$nulls":7},""]
[{"$nulls":4},"Cash receipts from repayment of advances and loans made to other parties",{"$nulls":4},"Cash receipts from repayment of advances and loans made to other parties investing activities",{"$nulls":7},""]
[{"$nulls":4},"Cash payments for future contracts, forward contracts, option contracts and swap contracts",{"$nulls":4},"Cash payments for future contracts, forward contracts, option contracts and swap contracts investing activities",{"$nulls":7},""]
[{"$nulls":4},"Cash receipts from future contracts, forward contracts, option contracts and swap contracts",{"$nulls":4},"Cash receipts from future contracts, forward contracts, option contracts and swap contracts investing activities",{"$nulls":7},""]
[{"$nulls":4},"Dividends received",{"$nulls":4},"Dividends received investing activities",{"$nulls":7},""]
[{"$nulls":4},"Interest received",{"$nulls":4},"Interest received investing activities",{"$nulls":7},""]
[{"$nulls":4},"Income taxes paid (refund)",{"$nulls":4},"Income taxes paid (refund) investing activities",{"$nulls":7},""]
[{"$nulls":4},"Other inflows (outflows) of cash",{"$nulls":4},"Other inflows (outflows) of cash investing activities",{"$nulls":7},""]
[{"$nulls":4},"Proceeds from government grants",{"$nulls":4},"Proceeds from government grants investing activities",{"$nulls":7},""]
[{"$nulls":4},"Net cash flows from (used in) investing activities",{"$f":"IF(COUNT(F40:F66),ROUND(SUM(F40)-SUM(F41)+SUM(F42)-SUM(F43)+SUM(F44)-SUM(F45)+SUM(F46)-SUM(F47)+SUM(F48)-SUM(F49)+SUM(F50)-SUM(F51)+SUM(F52)-SUM(F53)+SUM(F54)-SUM(F55)+SUM(F56)-SUM(F57)-SUM(F58)+SUM(F59)-SUM(F60)+SUM(F61)+SUM(F62)+SUM(F63)-SUM(F64)+SUM(F65)+SUM(F66),3),\"\")","v":""},{"$nulls":3},"Net cash flows from (used in) investing activities",{"$nulls":7},""]
[{"$nulls":4},"Cash flows from used in financing activities",{"$nulls":4},"Cash flows from used in financing activities [Abstract]",{"$nulls":7},""]
[{"$nulls":4},"Proceeds from changes in ownership interests in subsidiaries that do not result in loss of control",{"$nulls":4},"Proceeds from changes in ownership interests in subsidiaries that do not result in loss of control",{"$nulls":7},""]
[{"$nulls":4},"Payments from changes in ownership interests in subsidiaries that do not result in loss of control",{"$nulls":4},"Payments from changes in ownership interests in subsidiaries that do not result in loss of control",{"$nulls":7},""]
[{"$nulls":4},"Proceeds from issuing shares",{"$nulls":4},"Proceeds from issuing shares financing activities",{"$nulls":7},""]
[{"$nulls":4},"Proceeds from issuing other equity instruments",{"$nulls":4},"Proceeds from issuing other equity instruments financing activities",{"$nulls":7},""]
[{"$nulls":4},"Payments to acquire or redeem entity's shares",{"$nulls":4},"Payments to acquire or redeem entity's shares financing activities",{"$nulls":7},""]
[{"$nulls":4},"Payments of other equity instruments",{"$nulls":4},"Payments of other equity instruments financing activities",{"$nulls":7},""]
[{"$nulls":4},"Proceeds from exercise of stock options",{"$nulls":4},"Proceeds from exercise of stock options financing activities",{"$nulls":7},""]
[{"$nulls":4},"Proceeds from issuing debentures notes bonds etc",{"$nulls":4},"Proceeds from issuing debentures notes bonds etc financing activities",{"$nulls":7},""]
[{"$nulls":4},"Proceeds from borrowings",{"$nulls":4},"Proceeds from borrowings financing activities",{"$nulls":7},""]
[{"$nulls":4},"Repayments of borrowings",{"$nulls":4},"Repayments of borrowings financing activities",{"$nulls":7},""]
[{"$nulls":4},"Payments of finance lease liabilities",{"$nulls":4},"Payments of finance lease liabilities financing activities",{"$nulls":7},""]
[{"$nulls":4},"Payments of lease liabilities",{"$nulls":4},"Payments of lease liabilities financing activities",{"$nulls":7},""]
[{"$nulls":4},"Dividends paid",{"$nulls":4},"Dividends paid financing activities",{"$nulls":7},""]
[{"$nulls":4},"Interest paid",{"$nulls":4},"Interest paid financing activities",{"$nulls":7},""]
[{"$nulls":4},"Income taxes paid (refund)",{"$nulls":4},"Income taxes paid (refund) financing activities",{"$nulls":7},""]
[{"$nulls":4},"Other inflows (outflows) of cash",{"$nulls":4},"Other inflows (outflows) of cash financing activities",{"$nulls":7},{"$f":"+IF(COUNT(F84),+F84,\"\")","v":""}]
[{"$nulls":4},"Net cash flows from (used in) financing activities",{"$f":"IF(COUNT(F69:F84),ROUND(SUM(F69)-SUM(F70)+SUM(F71)+SUM(F72)-SUM(F73)-SUM(F74)+SUM(F75)+SUM(F76)+SUM(F77)-SUM(F78)-SUM(F79)-SUM(F80)-SUM(F81)-SUM(F82)-SUM(F83)+SUM(F84),3),\"\")","v":""},{"$nulls":3},"Net cash flows from (used in) financing activities",{"$nulls":7},""]
[{"$nulls":4},"Net increase (decrease) in cash and cash equivalents before effect of exchange rate changes",{"$f":"IF(COUNT(F38:F85),ROUND(SUM(F38)+SUM(F67)+SUM(F85),3),\"\")","v":""},{"$nulls":3},"Net increase (decrease) in cash and cash equivalents before effect of exchange rate changes",{"$nulls":7},""]
[{"$nulls":4},"Effect of exchange rate changes on cash and cash equivalents",{"$nulls":4},"Effect of exchange rate changes on cash and cash equivalents [Abstract]",{"$nulls":7},""]
[{"$nulls":4},"Effect of exchange rate changes on cash and cash equivalents",{"$nulls":4},"Effect of exchange rate changes on cash and cash equivalents",{"$nulls":7},""]
[{"$nulls":4},"Net increase (decrease) in cash and cash equivalents",{"$f":"IF(COUNT(F86,F88),ROUND(SUM(F86)+SUM(F88),3),\"\")","v":""},{"$nulls":3},"Net increase (decrease) in cash and cash equivalents",{"$nulls":7},""]
[{"$nulls":4},"Cash and cash equivalents cash flow statement at beginning of period",{"$nulls":4},"Cash and cash equivalents cash flow statement at beginning of period",{"$nulls":7},""]
[{"$nulls":4},"Cash and cash equivalents cash flow statement at end of period",{"$f":"+IF(COUNT(F89:F90),ROUND(SUM(F89)+SUM(F90),3),\"\")","v":""},{"$nulls":3},"Cash and cash equivalents cash flow statement at end of period",{"$nulls":7},""]

{"sheet":"Cash Flow Indirect","index":9,"n_rows":113,"n_cols":18,"rows_kept":113,"merged":[[7,3,7,5],[8,3,8,4],[13,4,13,5]]}
{"$rows_empty":7}
[{"$nulls":3},"Cash flow statement, indirect"]
[{"$nulls":3},"Particulars",null,"6 months ended         (dd-mm-yyyy)"]
[{"$nulls":3},"A","Date of start of reporting period","01-04-2020"]
[{"$nulls":3},"B","Date of end of reporting period","30-09-2020"]
[{"$nulls":3},"C","Whether results are audited or unaudited",{"$f":"+IF(COUNTA('General Info'!E21),'General Info'!E21,\"\")","v":"Unaudited"},{"$nulls":7},"Audited"]
[{"$nulls":3},"D","Nature of report standalone or consolidated",{"$f":"+IF(COUNTA('General Info'!E20),'General Info'!E20,\"\")","v":"Standalone"},{"$nulls":7},"Unaudited"]
[{"$nulls":3},"Part I","Blue color marked fields are non-mandatory.                   "]
[{"$nulls":4},"Statement of cash flows"]
[{"$nulls":4},"Whether cash flow statement is applicable on company",{"$f":"+IF(COUNTA('General Info'!E26),'General Info'!E26,\"\")","v":"Yes"}]
[{"$nulls":4},"Cash flows from used in operating activities"]
[{"$nulls":4},"Profit before tax",{"$f":"+IF(COUNTA('Financial Results'!$G$41),'Financial Results'!$G$41,\"\")","v":-155.21},{"$nulls":3},"Profit before tax indirect",{"$nulls":7},{"$f":"+IF(COUNT(F18),+F18,\"\")","v":-155.21}]
[{"$nulls":4},"Adjustments for reconcile profit (loss)",{"$nulls":4},"Adjustments for reconcile profit (loss) [Abstract]",{"$nulls":7},{"$f":"+IF(COUNT(F19),+F19,\"\")","v":""}]
[{"$nulls":4},"Adjustments for finance costs",{"v":0,"d":"0.000"},{"$nulls":3},"Adjustments for finance costs",{"$nulls":7},0]
[{"$nulls":4},"Adjustments for decrease (increase) in inventories",{"v":187.77,"d":"187.770"},{"$nulls":3},"Adjustments for decrease (increase) in inventories",{"$nulls":7},187.77]
[{"$nulls":4},"Adjustments for decrease (increase) in trade receivables, current",{"v":81.31,"d":"81.310"},{"$nulls":3},"Adjustments for decrease (increase) in trade receivables, current",{"$nulls":7},81.31]
[{"$nulls":4},"Adjustments for decrease (increase) in trade receivables, non-current",{"v":-79.99,"d":"-79.990"},{"$nulls":3},"Adjustments for decrease (increase) in trade receivables, non-current",{"$nulls":7},-79.99]
[{"$nulls":4},"Adjustments for decrease (increase) in other current assets",{"v":0,"d":"0.000"},{"$nulls":3},"Adjustments for decrease (increase) in other current assets",{"$nulls":7},0]
[{"$nulls":4},"Adjustments for decrease (increase) in other non-current assets",{"v":1.11,"d":"1.110"},{"$nulls":3},"Adjustments for decrease (increase) in other non-current assets",{"$nulls":7},1.11]
[{"$nulls":4},"Adjustments for other financial assets, non-current",0,{"$nulls":3},"Adjustments for other financial assets, non-current",{"$nulls":7},0]
[{"$nulls":4},"Adjustments for other financial assets, current",{"v":0,"d":"0.000"},{"$nulls":3},"Adjustments for other financial assets, current",{"$nulls":7},0]
[{"$nulls":4},"Adjustments for other bank balances",{"v":0,"d":"0.000"},{"$nulls":3},"Adjustments for other bank balances",{"$nulls":7},0]
[{"$nulls":4},"Adjustments for increase (decrease) in trade payables, current",{"v":-69.98,"d":"-69.980"},{"$nulls":3},"Adjustments for increase (decrease) in trade payables, current",{"$nulls":7},-69.98]
[{"$nulls":4},"Adjustments for increase (decrease) in trade payables, non-current",{"v":0,"d":"0.000"},{"$nulls":3},"Adjustments for increase (decrease) in trade payables, non-current",{"$nulls":7},0]
[{"$nulls":4},"Adjustments for increase (decrease) in other current liabilities",{"v":0,"d":"0.000"},{"$nulls":3},"Adjustments for increase (decrease) in other current liabilities",{"$nulls":7},0]
[{"$nulls":4},"Adjustments for increase (decrease) in other non-current liabilities",{"v":0,"d":"0.000"},{"$nulls":3},"Adjustments for increase (decrease) in other non-current liabilities",{"$nulls":7},0]
[{"$nulls":4},"Adjustments for depreciation and amortisation expense",{"v":10.6,"d":"10.600"},{"$nulls":3},"Adjustments for depreciation and amortisation expense",{"$nulls":7},10.6]
[{"$nulls":4},"Adjustments for impairment loss reversal of impairment loss recognised in profit or loss",{"v":0,"d":"0.000"},{"$nulls":3},"Adjustments for impairment loss reversal of impairment loss recognised in profit or loss",{"$nulls":7},0]
[{"$nulls":4},"Adjustments for provisions, current",{"v":0,"d":"0.000"},{"$nulls":3},"Adjustments for provisions, current",{"$nulls":7},0]
[{"$nulls":4},"Adjustments for provisions, non-current",{"v":0,"d":"0.000"},{"$nulls":3},"Adjustments for provisions, non-current",{"$nulls":7},0]
[{"$nulls":4},"Adjustments for other financial liabilities, current",{"v":25.99,"d":"25.990"},{"$nulls":3},"Adjustments for other financial liabilities, current",{"$nulls":7},25.99]
[{"$nulls":4},"Adjustments for other financial liabilities, non-current",{"v":0,"d":"0.000"},{"$nulls":3},"Adjustments for other financial liabilities, non-current",{"$nulls":7},0]
[{"$nulls":4},"Adjustments for unrealised foreign exchange losses gains",{"v":0,"d":"0.000"},{"$nulls":3},"Adjustments for unrealised foreign exchange losses gains",{"$nulls":7},0]
[{"$nulls":4},"Adjustments for dividend income",{"v":0.66,"d":"0.660"},{"$nulls":3},"Adjustments for dividend income",{"$nulls":7},0.66]
[{"$nulls":4},"Adjustments for interest income",{"v":41.36,"d":"41.360"},{"$nulls":3},"Adjustments for interest income",{"$nulls":7},41.36]
[{"$nulls":4},"Adjustments for share-based payments",{"v":0,"d":"0.000"},{"$nulls":3},"Adjustments for share-based payments",{"$nulls":7},0]
[{"$nulls":4},"Adjustments for fair value losses (gains)",{"v":0,"d":"0.000"},{"$nulls":3},"Adjustments for fair value losses (gains)",{"$nulls":7},0]
[{"$nulls":4},"Adjustments for undistributed profits of associates",{"v":0,"d":"0.000"},{"$nulls":3},"Adjustments for undistributed profits of associates",{"$nulls":7},0]
[{"$nulls":4},"Other adjustments for which cash effects are investing or financing cash flow",{"v":0,"d":"0.000"},{"$nulls":3},"Other adjustments for which cash effects are investing or financing cash flow",{"$nulls":7},0]
[{"$nulls":4},"Other adjustments to reconcile profit (loss)",{"v":0,"d":"0.000"},{"$nulls":3},"Other adjustments to reconcile profit (loss)",{"$nulls":7},0]
[{"$nulls":4},"Other adjustments for non-cash items",{"v":0,"d":"0.000"},{"$nulls":3},"Other adjustments for non-cash items",{"$nulls":7},0]
[{"$nulls":4},"Share of profit and loss from partnership firm or association of persons or limited liability partnerships",{"v":0,"d":"0.000"},{"$nulls":3},"Share of profit and loss from partnership firm or association of persons or limited liability partnerships",{"$nulls":7},0]
[{"$nulls":4},"Total adjustments for reconcile profit (loss)",{"$f":"IF(COUNT(F20:F48),ROUND(SUM(F20:F39)-SUM(F40:F41)+SUM(F42:F43)-SUM(F44)+SUM(F45:F48),3),\"\")","v":{"v":114.79,"d":"114.790"}},{"$nulls":3},"Total adjustments for reconcile profit (loss)",{"$nulls":7},114.79]
[{"$nulls":4},"Net cash flows from (used in) operations",{"$f":"IF(COUNT(F18,F49),ROUND(SUM(F18)+SUM(F49),3),\"\")","v":{"v":-40.42,"d":"-40.420"}},{"$nulls":3},"Net cash flows from (used in) operations operating activities",{"$nulls":7},-40.42]
[{"$nulls":4},"Dividends received",{"v":0,"d":"0.000"},{"$nulls":3},"Dividends received operating activities",{"$nulls":7},0]
[{"$nulls":4},"Interest paid",{"v":-6.71,"d":"-6.710"},{"$nulls":3},"Interest paid operating activities",{"$nulls":7},-6.71]
[{"$nulls":4},"Interest received",{"v":0,"d":"0.000"},{"$nulls":3},"Interest received operating activities",{"$nulls":7},0]
[{"$nulls":4},"Income taxes paid (refund)",{"v":17.46,"d":"17.460"},{"$nulls":3},"Income taxes paid (refund) operating activities",{"$nulls":7},17.46]
[{"$nulls":4},"Other inflows (outflows) of cash",{"v":0,"d":"0.000"},{"$nulls":3},"Other inflows (outflows) of cash operating activities",{"$nulls":7},0]
[{"$nulls":4},"Net cash flows from (used in) operating activities",{"$f":"IF(COUNT(F50:F55),ROUND(SUM(F50)+SUM(F51)-SUM(F52)+SUM(F53)-SUM(F54)+SUM(F55),3),\"\")","v":{"v":-51.17,"d":"-51.170"}},{"$nulls":3},"Net cash flows from (used in) operating activities",{"$nulls":7},-51.17]
[{"$nulls":4},"Cash flows from used in investing activities",{"$nulls":4},"Cash flows from used in investing activities [Abstract]",{"$nulls":7},""]
[{"$nulls":4},"Cash flows from losing control of subsidiaries or other businesses",{"v":0,"d":"0.000"},{"$nulls":3},"Cash flows from losing control of subsidiaries or other businesses investing activities",{"$nulls":7},0]
[{"$nulls":4},"Cash flows used in obtaining control of subsidiaries or other businesses",{"v":0,"d":"0.000"},{"$nulls":3},"Cash flows used in obtaining control of subsidiaries or other businesses investing activities",{"$nulls":7},0]
[{"$nulls":4},"Other cash receipts from sales of equity or debt instruments of other entities",{"v":0,"d":"0.000"},{"$nulls":3},"Other cash receipts from sales of equity or debt instruments of other entities investing activities",{"$nulls":7},0]
[{"$nulls":4},"Other cash payments to acquire equity or debt instruments of other entities",{"v":0,"d":"0.000"},{"$nulls":3},"Other cash payments to acquire equity or debt instruments of other entities investing activities",{"$nulls":7},0]
[{"$nulls":4},"Other cash receipts from sales of interests in joint ventures",{"v":0,"d":"0.000"},{"$nulls":3},"Other cash receipts from sales of interests in joint ventures investing activities",{"$nulls":7},0]
[{"$nulls":4},"Other cash payments to acquire interests in joint ventures",{"v":0,"d":"0.000"},{"$nulls":3},"Other cash payments to acquire interests in joint ventures investing activities",{"$nulls":7},0]
[{"$nulls":4},"Cash receipts from share of profits of partnership firm or association of persons or limited liability partnerships",{"v":0,"d":"0.000"},{"$nulls":3},"Cash receipts from share of profits of partnership firm or association of persons or limited liability partnerships",{"$nulls":7},0]
[{"$nulls":4},"Cash payment for investment in partnership firm or association of persons or limited liability partnerships",{"v":0,"d":"0.000"},{"$nulls":3},"Cash payment for investment in partnership firm or association of persons or limited liability partnerships",{"$nulls":7},0]
[{"$nulls":4},"Proceeds from sales of property, plant and equipment",{"v":0.31,"d":"0.310"},{"$nulls":3},"Proceeds from sales of property, plant and equipment investing activities",{"$nulls":7},0.31]
[{"$nulls":4},"Purchase of property, plant and equipment",{"v":40.49,"d":"40.490"},{"$nulls":3},"Purchase of property, plant and equipment investing activities",{"$nulls":7},40.49]
[{"$nulls":4},"Proceeds from sales of investment property",{"v":24.92,"d":"24.920"},{"$nulls":3},"Proceeds from sales of investment property investing activities",{"$nulls":7},24.92]
[{"$nulls":4},"Purchase of investment property",{"v":55.1,"d":"55.100"},{"$nulls":3},"Purchase of investment property investing activities",{"$nulls":7},55.1]
[{"$nulls":4},"Proceeds from sales of intangible assets",{"v":0,"d":"0.000"},{"$nulls":3},"Proceeds from sales of intangible assets investing activities",{"$nulls":7},0]
[{"$nulls":4},"Purchase of intangible assets",{"v":0,"d":"0.000"},{"$nulls":3},"Purchase of intangible assets investing activities",{"$nulls":7},0]
[{"$nulls":4},"Proceeds from sales of intangible assets under development",{"v":0,"d":"0.000"},{"$nulls":3},"Proceeds from sales of intangible assets under development",{"$nulls":7},0]
[{"$nulls":4},"Purchase of intangible assets under development",{"v":0,"d":"0.000"},{"$nulls":3},"Purchase of intangible assets under development",{"$nulls":7},0]
[{"$nulls":4},"Proceeds from sales of goodwill",{"v":0,"d":"0.000"},{"$nulls":3},"Proceeds from sales of goodwill investing activities",{"$nulls":7},0]
[{"$nulls":4},"Purchase of goodwill",{"v":0,"d":"0.000"},{"$nulls":3},"Purchase of goodwill investing activities",{"$nulls":7},0]
[{"$nulls":4},"Proceeds from biological assets other than bearer plants",{"v":0,"d":"0.000"},{"$nulls":3},"Proceeds from biological assets other than bearer plants investing activities",{"$nulls":7},0]
[{"$nulls":4},"Purchase of biological assets other than bearer plants",{"v":0,"d":"0.000"},{"$nulls":3},"Purchase of biological assets other than bearer plants investing activities",{"$nulls":7},0]
[{"$nulls":4},"Proceeds from government grants",{"v":0,"d":"0.000"},{"$nulls":3},"Proceeds from government grants investing activities",{"$nulls":7},0]
[{"$nulls":4},"Proceeds from sales of other long-term assets",{"v":0.57,"d":"0.570"},{"$nulls":3},"Proceeds from sales of other long-term assets investing activities",{"$nulls":7},0.57]
[{"$nulls":4},"Purchase of other long-term assets",{"v":0,"d":"0.000"},{"$nulls":3},"Purchase of other long-term assets investing activities",{"$nulls":7},0]
[{"$nulls":4},"Cash advances and loans made to other parties",{"v":0,"d":"0.000"},{"$nulls":3},"Cash advances and loans made to other parties investing activities",{"$nulls":7},0]
[{"$nulls":4},"Cash receipts from repayment of advances and loans made to other parties",{"v":0,"d":"0.000"},{"$nulls":3},"Cash receipts from repayment of advances and loans made to other parties investing activities",{"$nulls":7},0]
[{"$nulls":4},"Cash payments for future contracts, forward contracts, option contracts and swap contracts",{"v":0,"d":"0.000"},{"$nulls":3},"Cash payments for future contracts, forward contracts, option contracts and swap contracts investing activities",{"$nulls":7},{"$f":"+IF(COUNT(F83),+F83,\"\")","v":0}]
[{"$nulls":4},"Cash receipts from future contracts, forward contracts, option contracts and swap contracts",{"v":0,"d":"0.000"},{"$nulls":3},"Cash receipts from future contracts, forward contracts, option contracts and swap contracts investing activities",{"$nulls":7},0]
[{"$nulls":4},"Dividends received",{"v":0.66,"d":"0.660"},{"$nulls":3},"Dividends received investing activities",{"$nulls":7},0.66]
[{"$nulls":4},"Interest received",{"v":41.36,"d":"41.360"},{"$nulls":3},"Interest received investing activities",{"$nulls":7},41.36]
[{"$nulls":4},"Income taxes paid (refund)",{"v":0,"d":"0.000"},{"$nulls":3},"Income taxes paid (refund) investing activities",{"$nulls":7},0]
[{"$nulls":4},"Other inflows (outflows) of cash",{"v":0,"d":"0.000"},{"$nulls":3},"Other inflows (outflows) of cash investing activities",{"$nulls":7},0]
[{"$nulls":4},"Net cash flows from (used in) investing activities",{"$f":"IF(COUNT(F58:F88),ROUND(SUM(F58)-SUM(F59)+SUM(F60)-SUM(F61)+SUM(F62)-SUM(F63)+SUM(F64)-SUM(F65)+SUM(F66)-SUM(F67)+SUM(F68)-SUM(F69)+SUM(F70)-SUM(F71)+SUM(F72)-SUM(F73)+SUM(F74)-SUM(F75)+SUM(F76)-SUM(F77)+SUM(F78)+SUM(F79)-SUM(F80)-SUM(F81)+SUM(F82)-SUM(F83)+SUM(F84:F86)-SUM(F87)+SUM(F88),3),\"\")","v":{"v":-27.77,"d":"-27.770"}},{"$nulls":3},"Net cash flows from (used in) investing activities",{"$nulls":7},-27.77]
[{"$nulls":4},"Cash flows from used in financing activities",{"$nulls":4},"Cash flows from used in financing activities [Abstract]",{"$nulls":7},""]
[{"$nulls":4},"Proceeds from changes in ownership interests in subsidiaries",{"v":0,"d":"0.000"},{"$nulls":3},"Proceeds from changes in ownership interests in subsidiaries",{"$nulls":7},0]
[{"$nulls":4},"Payments from changes in ownership interests in subsidiaries",{"v":0,"d":"0.000"},{"$nulls":3},"Payments from changes in ownership interests in subsidiaries",{"$nulls":7},0]
[{"$nulls":4},"Proceeds from issuing shares",{"v":0,"d":"0.000"},{"$nulls":3},"Proceeds from issuing shares financing activities",{"$nulls":7},0]
[{"$nulls":4},"Proceeds from issuing other equity instruments",{"v":0,"d":"0.000"},{"$nulls":3},"Proceeds from issuing other equity instruments financing activities",{"$nulls":7},0]
[{"$nulls":4},"Payments to acquire or redeem entity's shares",{"v":0,"d":"0.000"},{"$nulls":3},"Payments to acquire or redeem entity's shares financing activities",{"$nulls":7},0]
[{"$nulls":4},"Payments of other equity instruments",{"v":0,"d":"0.000"},{"$nulls":3},"Payments of other equity instruments financing activities",{"$nulls":7},0]
[{"$nulls":4},"Proceeds from exercise of stock options",{"v":0,"d":"0.000"},{"$nulls":3},"Proceeds from exercise of stock options financing activities",{"$nulls":7},0]
[{"$nulls":4},"Proceeds from issuing debentures notes bonds etc",{"v":0,"d":"0.000"},{"$nulls":3},"Proceeds from issuing debentures notes bonds etc financing activities",{"$nulls":7},0]
[{"$nulls":4},"Proceeds from borrowings",{"v":94.87,"d":"94.870"},{"$nulls":3},"Proceeds from borrowings financing activities",{"$nulls":7},94.87]
[{"$nulls":4},"Repayments of borrowings",{"v":0,"d":"0.000"},{"$nulls":3},"Repayments of borrowings financing activities",{"$nulls":7},0]
[{"$nulls":4},"Payments of finance lease liabilities",{"v":0,"d":"0.000"},{"$nulls":3},"Payments of finance lease liabilities financing activities",{"$nulls":7},0]
[{"$nulls":4},"Payments of lease liabilities",{"v":0,"d":"0.000"},{"$nulls":3},"Payments of lease liabilities financing activities",{"$nulls":7},0]
[{"$nulls":4},"Dividends paid",{"v":0,"d":"0.000"},{"$nulls":3},"Dividends paid financing activities",{"$nulls":7},0]
[{"$nulls":4},"Interest paid",{"v":6.71,"d":"6.710"},{"$nulls":3},"Interest paid financing activities",{"$nulls":7},6.71]
[{"$nulls":4},"Income taxes paid (refund)",{"v":0,"d":"0.000"},{"$nulls":3},"Income taxes paid (refund) financing activities",{"$nulls":7},0]
[{"$nulls":4},"Other inflows (outflows) of cash",{"v":0,"d":"0.000"},{"$nulls":3},"Other inflows (outflows) of cash financing activities",{"$nulls":7},0]
[{"$nulls":4},"Net cash flows from (used in) financing activities",{"$f":"IF(COUNT(F91:F106),ROUND(SUM(F91)-SUM(F92)+SUM(F93)+SUM(F94)-SUM(F95)-SUM(F96)+SUM(F97)+SUM(F98)+SUM(F99)-SUM(F100)-SUM(F101)-SUM(F102)-SUM(F103)-SUM(F104)-SUM(F105)+SUM(F106),3),\"\")","v":{"v":88.16,"d":"88.160"}},{"$nulls":3},"Net cash flows from (used in) financing activities",{"$nulls":7},88.16]
[{"$nulls":4},"Net increase (decrease) in cash and cash equivalents before effect of exchange rate changes",{"$f":"IF(COUNT(F56:F107),ROUND(SUM(F56)+SUM(F89)+SUM(F107),3),\"\")","v":{"v":9.22,"d":"9.220"}},{"$nulls":3},"Net increase (decrease) in cash and cash equivalents before effect of exchange rate changes",{"$nulls":7},9.22]
[{"$nulls":4},"Effect of exchange rate changes on cash and cash equivalents",{"$nulls":4},"Effect of exchange rate changes on cash and cash equivalents [Abstract]",{"$nulls":7},""]
[{"$nulls":4},"Effect of exchange rate changes on cash and cash equivalents",{"v":0,"d":"0.000"},{"$nulls":3},"Effect of exchange rate changes on cash and cash equivalents",{"$nulls":7},0]
[{"$nulls":4},"Net increase (decrease) in cash and cash equivalents",{"$f":"IF(COUNT(F108,F110),ROUND(SUM(F108)+SUM(F110),3),\"\")","v":{"v":9.22,"d":"9.220"}},{"$nulls":3},"Net increase (decrease) in cash and cash equivalents",{"$nulls":7},9.22]
[{"$nulls":4},"Cash and cash equivalents cash flow statement at beginning of period",{"v":324.1,"d":"324.100"},{"$nulls":3},"Cash and cash equivalents cash flow statement at beginning of period",{"$nulls":7},324.1]
[{"$nulls":4},"Cash and cash equivalents cash flow statement at end of period",{"$f":"IF(COUNT(F111,F112),ROUND(SUM(F111)+SUM(F112),3),\"\")","v":{"v":333.32,"d":"333.320"}},{"$nulls":3},"Cash and cash equivalents cash flow statement at end of period",{"$nulls":7},333.32]